Workbook

Sheet 1 день
A1: 1 день
B2: № по сборн. Рецеп. | C2: наименование | D2: выход, гр. | E2: белки,г. | F2: жиры,г. | G2: углеводы,г. | H2: Энерг.цен.,ккал | I2: Минеральные элементы | L2: Витамины
I3: Са | J3: Mg | K3: Fe | L3: В1, мг. | M3: В2, мг. | N3: С, мг.
C4: завтрак
B5: 1.3 | C5: Бутерброд с маслом | D5: 115 | E5: 2.4 | F5: 12.7 | G5: 14.6 | H5: 186 | I5: 8.7 | J5: 9.9 | K5: 0.63 | L5: 0.05 | M5: 0.03 | N5: 0
B6: 210 | C6: каша,,дружба,, | D6: 250 | E6: 7.9 | F6: 10.8 | G6: 41.9 | H6: 300 | I6: 159.3 | J6: 46.37 | K6: 1 | L6: 0.15 | M6: 0.2 | N6: 0.67
B7: 1.4 | C7: сыр голандский | D7: 30 | E7: 7.9 | F7: 8 | G7: 0 | H7: 105 | I7: 300 | J7: 16.5 | K7: 0.21 | L7: 0.01 | M7: 0.11 | N7: 0.21
B8: 304 | C8: кофейный напиток | D8: 200 | E8: 2.9 | F8: 2.8 | G8: 14.9 | H8: 94 | I8: 105.86 | J8: 12.18 | K8: 0.11 | L8: 0.03 | M8: 0.12 | N8: 0.52
C9: итого | D9: =SUM(D5:D8) -> 595 | E9: 21.1 | F9: 34.3 | G9: 71.4 | H9: 685 | I9: 573.86 | J9: 84.95 | K9: 1.95 | L9: 0.24 | M9: 0.46 | N9: 1.4
C10: завтрак 2
C11: сок фруктовый | D11: 200 | E11: 0.5 | F11: 0 | G11: 10.6 | H11: 44 | I11: 7.85 | J11: 2.09 | K11: 0.79 | L11: 0.004 | M11: 0.005 | N11: 0.48
C12: печенье | D12: 50 | E12: 1.5 | F12: 2 | G12: 14.9 | H12: 83.4 | I12: 0 | J12: 4 | K12: 0.4 | L12: 0 | M12: 0 | N12: 0
C13: итого | D13: =SUM(D11:D12) -> 250 | E13: =SUM(E11:E12) -> 2 | F13: 2 | G13: 25.5 | H13: 127.4 | I13: 7.85 | J13: 6.09 | K13: 1.19 | L13: 0.004 | M13: 0.005 | N13: 0.48
C14: обед
B15: 17 | C15: салат из моркови | D15: 100 | E15: 1.1 | F15: 8.9 | G15: 8.3 | H15: 120 | I15: 20.99 | J15: 29.09 | K15: 0.54 | L15: 0.04 | M15: 0.05 | N15: 1.76
B16: 55 | C16: щи из свеж.капусты | D16: 300 | E16: 2 | F16: 5.4 | G16: 8.8 | H16: 96 | I16: 40.62 | J16: 19.86 | K16: 0.73 | L16: 0.06 | M16: 0.06 | N16: 12.01
B17: 133 | C17: курица отварная | D17: 100 | E17: 26.1 | F17: 24.6 | G17: 0.3 | H17: 327 | I17: 22.58 | J17: 24.33 | K17: 2.14 | L17: 0.08 | M17: 0.18 | N17: 1.27
B18: 8.1 | C18: рис отварной | D18: 180 | E18: 4.5 | F18: 7 | G18: 45.3 | H18: 271 | I18: 21.17 | J18: 18.15 | K18: 0.5 | L18: 0.02 | M18: 0.02 | N18: 0
B19: 319 | C19: напиток из плодов шиповника | D19: 200 | E19: 0.7 | F19: 0.3 | G19: 29 | H19: 127 | I19: 12.22 | J19: 3.23 | K19: 0.64 | L19: 0.01 | M19: 0.05 | N19: 80
B20: 1, 5 | C20: хлеб пшеничный | D20: 70 | E20: 3.1 | F20: 7 | G20: 33.8 | H20: 172.2 | I20: 16.1 | J20: 23.1 | K20: 1.4 | L20: 0.11 | M20: 0.04 | N20: 0
B21: 1.6 | C21: хлеб ржаной | D21: 40 | E21: 2.6 | F21: 0.48 | G21: 13.3 | H21: 77.2 | I21: 14 | J21: 18.8 | K21: 1.56 | L21: 0.07 | M21: 0.02 | N21: 0
C22: итого | D22: =SUM(D15:D21) -> 990 | E22: 40.1 | F22: 53.68 | G22: 138.8 | H22: 1190.4 | I22: 147.68 | J22: 136.56 | K22: 7.51 | L22: 0.39 | M22: 0.42 | N22: 95.04
C23: полдник
B24: 300 | C24: чай с сахаром | D24: 200 | E24: 0.2 | F24: 0 | G24: 9.1 | H24: 36 | I24: 0.26 | J24: 0 | K24: 0.03 | L24: 0 | M24: 0 | N24: 0
B25: 265 | C25: Пирожок печеный с повидлом | D25: 100 | E25: 6 | F25: 5 | G25: 56 | H25: 289 | I25: 17.64 | J25: 9.48 | K25: 1.12 | L25: 0.06 | M25: 0.05 | N25: 0.09
C26: Фрукт в ассортименте
C27: итого | D27: =SUM(D24:D25) -> 300 | E27: =SUM(E24:E25) -> 6.2 | F27: 5 | G27: 65.1 | H27: 325 | I27: 17.9 | J27: 9.48 | K27: 1.15 | L27: 0.06 | M27: 0.05 | N27: 0.09
C28: ужин
B29: 6 | C29: салат из капусты | D29: 100 | E29: 2.1 | F29: 4.5 | G29: 10.3 | H29: 94 | I29: 58.83 | J29: 20.53 | K29: 0.75 | L29: 0.03 | M29: 0.05 | N29: 21.65
B30: 122 | C30: запеканка картоф.с мясом | D30: 250 | E30: 18.4 | F30: 17.4 | G30: 30.7 | H30: 362 | I30: 28.99 | J30: 57.29 | K30: 2.42 | L30: 0.11 | M30: 0.16 | N30: 1.29
B31: 302 | C31: чай с сахаром,лимоном | D31: 200 | E31: 0.2 | F31: 0 | G31: 9.3 | H31: 38 | I31: 2.73 | J31: 0.73 | K31: 0.06 | L31: 0 | M31: 0 | N31: 1.12
B32: 1, 5 | C32: хлеб пшеничный | D32: 70 | E32: 3.1 | F32: 7 | G32: 33.8 | H32: 172.2 | I32: 16.1 | J32: 23.1 | K32: 1.4 | L32: 0.11 | M32: 0.04 | N32: 0
B33: 1.6 | C33: хлеб ржаной | D33: 40 | E33: 2.6 | F33: 0.48 | G33: 13.3 | H33: 77.2 | I33: 14 | J33: 18.8 | K33: 1.56 | L33: 0.07 | M33: 0.02 | N33: 0
C34: итого | D34: =SUM(D29:D33) -> 660 | E34: =SUM(E29:E33) -> 26.4 | F34: 29.38 | G34: 97.4 | H34: 743.4 | I34: 120.65 | J34: 120.45 | K34: 6.19 | L34: 0.32 | M34: 0.27 | N34: 24.06
C35: ужин 2
B36: 298 | C36: кисломол.прод. | D36: 200 | E36: 5.7 | F36: 6.3 | G36: 17.6 | H36: 151 | I36: 235.2 | J36: 27.44 | K36: 0.23 | L36: 0.06 | M36: 0.33 | N36: 1.37
C37: итого за день | D37: =SUM(D9+D13+D22+D27+D34+D36) -> 2995 | E37: 101.5 | F37: 130.66 | G37: 415.8 | H37: 3222.2 | I37: 1103.14 | J37: 384.97 | K37: 18.22 | L37: 1.074 | M37: 1.535 | N37: 122.44

Sheet 2 день
A1: 2 день
B2: № по сборн. Рецеп. | C2: наименование | D2: выход, гр. | E2: белки,г. | F2: жиры,г. | G2: углеводы,г. | H2: Энерг.цен.,ккал | I2: Минеральные элементы | L2: Витамины
I3: Са | J3: Mg | K3: Fe | L3: В1, мг. | M3: В2, мг. | N3: С, мг.
C4: завтрак
B5: 1.3 | C5: Бутерброд с маслом | D5: 115 | E5: 2.4 | F5: 12.7 | G5: 14.6 | H5: 186 | I5: 8.7 | J5: 9.9 | K5: 0.63 | L5: 0.05 | M5: 0.03 | N5: 0
B6: 208 | C6: каша пшенная молочная | D6: 250 | E6: 6.7 | F6: 7.6 | G6: 32.6 | H6: 222 | I6: 120.25 | J6: 32.58 | K6: 1.65 | L6: 0.12 | M6: 0.16 | N6: 0.47
B7: 306 | C7: какао с молоком | D7: 200 | E7: 3.6 | F7: 3.3 | G7: 13.7 | H7: 98 | I7: 110.37 | J7: 26.97 | K7: 0.88 | L7: 0.03 | M7: 0.13 | N7: 0.52
C8: итого | D8: =SUM(D5:D7) -> 565 | E8: 12.7 | F8: 23.6 | G8: 60.9 | H8: 506 | I8: 239.32 | J8: 69.45 | K8: 3.16 | L8: 0.2 | M8: 0.32 | N8: 0.99
C9: завтрак 2
B10: 234 | C10: Омлет | D10: 155 | E10: 14.6 | F10: 25.6 | G10: 2.6 | H10: 299 | I10: 100.46 | J10: 16.81 | K10: 2.5 | L10: 0.07 | M10: 0.46 | N10: 0.22
B11: 304 | C11: кофейный напиток | D11: 200 | E11: 2.9 | F11: 2.8 | G11: 14.9 | H11: 94 | I11: 105.86 | J11: 12.18 | K11: 0.11 | L11: 0.03 | M11: 0.12 | N11: 0.52
C12: итого | D12: =SUM(D10:D11) -> 355 | E12: =SUM(E10:E11) -> 17.5 | F12: 28.4 | G12: 17.5 | H12: 393 | I12: 206.32 | J12: 28.99 | K12: 2.61 | L12: 0.1 | M12: 0.58 | N12: 0.74
C13: обед
B14: 42 | C14: винегрет овощной | D14: 100 | E14: 1.4 | F14: 2.6 | G14: 8.2 | H14: 66 | I14: 28.03 | J14: 19.49 | K14: 0.84 | L14: 0.05 | M14: 0.04 | N14: 13.28
B15: 64 | C15: Суп с клецками | D15: 300 | E15: 3.2 | F15: 3.2 | G15: 19 | H15: 123 | I15: 16.62 | J15: 21.2 | K15: 0.92 | L15: 0.09 | M15: 0.07 | N15: 5.52
B16: 2.25 | C16: Котлеты мясные паровые | D16: 100 | E16: 16.82 | F16: 11.42 | G16: 7.28 | H16: 200 | I16: 12.6 | J16: 8.1 | K16: 5.6 | L16: 11.5 | M16: 10 | N16: 1.8
B17: 146 | C17: картофельное пюре | D17: 200 | E17: 4.1 | F17: 6.3 | G17: 26.7 | H17: 187 | I17: 47.47 | J17: 37.87 | K17: 1.38 | L17: 0.16 | M17: 0.14 | N17: 13.84
B18: 309 | C18: компот из кураги | D18: 200 | E18: 1.2 | F18: 0.1 | G18: 29.5 | H18: 127 | I18: 34.67 | J18: 21.7 | K18: 0.73 | L18: 0.02 | M18: 0.04 | N18: 0.16
B19: 1, 5 | C19: хлеб пшеничный | D19: 70 | E19: 3.1 | F19: 7 | G19: 33.8 | H19: 172.2 | I19: 16.1 | J19: 23.1 | K19: 1.4 | L19: 0.11 | M19: 0.04 | N19: 0
B20: 1.6 | C20: хлеб ржаной | D20: 40 | E20: 2.6 | F20: 0.48 | G20: 13.3 | H20: 77.2 | I20: 14 | J20: 18.8 | K20: 1.56 | L20: 0.07 | M20: 0.02 | N20: 0
C21: итого | D21: =SUM(D14:D20) -> 1010 | E21: 32.42 | F21: 31.1 | G21: 137.78 | H21: 952.4 | I21: 169.49 | J21: 150.26 | K21: 12.43 | L21: 12 | M21: 10.35 | N21: 34.6
C22: полдник
C23: сок фруктовый | D23: 200 | E23: 0.5 | F23: 0 | G23: 10.6 | H23: 44 | I23: 7.85 | J23: 2.09 | K23: 0.79 | L23: 0.004 | M23: 0.005 | N23: 0.48
B24: 280 | C24: ватрушка творожная | D24: 100 | E24: 10.5 | F24: 7.7 | G24: 41 | H24: 282 | I24: 52.5 | J24: 14.9 | K24: 0.97 | L24: 0.08 | M24: 0.128 | N24: 0.05
C25: Фрукт в ассортименте
C26: итого | D26: =SUM(D23:D24) -> 300 | E26: =SUM(E23:E24) -> 11 | F26: 7.7 | G26: 51.6 | H26: 326 | I26: 60.35 | J26: 16.99 | K26: 1.76 | L26: 0.084 | M26: 0.133 | N26: 0.53
C27: ужин
B28: 41 | C28: салат ,,студенческий,, | D28: 100 | E28: 3.5 | F28: 10.5 | G28: 7.4 | H28: 142 | I28: 19.82 | J28: 20.17 | K28: 0.82 | L28: 0.08 | M28: 0.1 | N28: 2.51
B29: 133 | C29: Курица отварная | D29: 100 | E29: 43 | F29: 36.2 | G29: 0.4 | H29: 499 | I29: 34.61 | J29: 35.82 | K29: 3.38 | L29: 0.1 | M29: 0.24 | N29: 1.54
B30: 8.1 | C30: Рис отварной | D30: 180 | E30: 4.5 | F30: 7 | G30: 45.3 | H30: 271 | I30: 21.17 | J30: 18.15 | K30: 0.5 | L30: 0.02 | M30: 0.02 | N30: 0
B31: 302 | C31: чай с сахаром,лимоном | D31: 200 | E31: 0.2 | F31: 0 | G31: 9.3 | H31: 38 | I31: 2.73 | J31: 0.73 | K31: 0.06 | L31: 0 | M31: 0 | N31: 1.12
B32: 1, 5 | C32: хлеб пшеничный | D32: 70 | E32: 3.1 | F32: 7 | G32: 33.8 | H32: 172.2 | I32: 16.1 | J32: 23.1 | K32: 1.4 | L32: 0.11 | M32: 0.04 | N32: 0
B33: 1.6 | C33: хлеб ржаной | D33: 40 | E33: 2.6 | F33: 0.48 | G33: 13.3 | H33: 77.2 | I33: 14 | J33: 18.8 | K33: 1.56 | L33: 0.07 | M33: 0.02 | N33: 0
C34: итого | D34: =SUM(D28:D33) -> 690 | E34: =SUM(E28:E33) -> 56.9 | F34: 61.18 | G34: 109.5 | H34: 1199.4 | I34: 108.43 | J34: 116.77 | K34: 7.72 | L34: 0.38 | M34: 0.42 | N34: 5.17
C35: ужин 2
B36: 298 | C36: кисломол.прод. | D36: 200 | E36: 5.7 | F36: 6.3 | G36: 17.6 | H36: 151 | I36: 235.2 | J36: 27.44 | K36: 0.23 | L36: 0.06 | M36: 0.33 | N36: 1.37
C37: итого за день | D37: =D8+D12+D21+D26+D34+D36 -> 3120 | E37: 136.22 | F37: 158.28 | G37: 394.88 | H37: 3527.8 | I37: 1019.11 | J37: 409.9 | K37: 27.91 | L37: 12.824 | M37: 12.133 | N37: 43.4

Sheet 3 день
A1: 3 день
A2: № по сборн. Рецеп. | B2: наименование | C2: выход, гр. | D2: белки,г. | E2: жиры,г. | F2: углеводы,г. | G2: Энерг.цен.,ккал | H2: Минеральные элементы | K2: Витамины
H3: Са | I3: Mg | J3: Fe | K3: В1, мг. | L3: В2, мг. | M3: С, мг.
B4: завтрак
A5: 1.3 | B5: Бутерброд с маслом | C5: 115 | D5: 2.4 | E5: 12.7 | F5: 14.6 | G5: 186 | H5: 8.7 | I5: 9.9 | J5: 0.63 | K5: 0.05 | L5: 0.03 | M5: 0
A6: 192 | B6: каша,,геркулес,, | C6: 250 | D6: 7.2 | E6: 9.1 | F6: 30.8 | G6: 239 | H6: 120.32 | I6: 57.76 | J6: 1.46 | K6: 0.16 | L6: 0.14 | M6: 0.18
A7: 304 | B7: кофейный напиток | C7: 200 | D7: 2.9 | E7: 2.8 | F7: 14.9 | G7: 94 | H7: 105.86 | I7: 12.18 | J7: 0.11 | K7: 0.03 | L7: 0.12 | M7: 0.52
B8: итого | C8: =SUM(C5:C7) -> 565 | D8: 12.5 | E8: 24.6 | F8: 60.3 | G8: 519 | H8: 234.88 | I8: 79.84 | J8: 2.2 | K8: 0.24 | L8: 0.29 | M8: 0.7
B9: завтрак 2
A10: 300 | B10: Чай с сахаром | C10: 200 | D10: 0.2 | E10: 0 | F10: 9.1 | G10: 36 | H10: 0.26 | I10: 0 | J10: 0.03 | K10: 0 | L10: 0 | M10: 0
A11: 1.1 | B11: Бутеброд с сыром | C11: 60 | D11: 4.1 | E11: 2.7 | F11: 0 | G11: 41 | H11: 5.63 | I11: 4.82 | J11: 0.85 | K11: 0.01 | L11: 0.02 | M11: 0
B12: итого | C12: =SUM(C10:C11) -> 260 | D12: =SUM(D10:D11) -> 4.3 | E12: 2.7 | F12: 9.1 | G12: 77 | H12: 5.89 | I12: 4.82 | J12: 0.88 | K12: 0.01 | L12: 0.02 | M12: 0
B13: обед
A14: 18 | B14: салат из моркови с курагой | C14: 100 | D14: 1.7 | E14: 4.5 | F14: 8.6 | G14: 87 | H14: 31.77 | I14: 28.94 | J14: 1.02 | K14: 0.05 | L14: 0.05 | M14: 8.04
A15: 65 | B15: Суп с бобовами | C15: 300 | D15: 9 | E15: 5.4 | F15: 38.9 | G15: 253 | H15: 46.41 | I15: 52.31 | J15: 2.77 | K15: 0.24 | L15: 0.1 | M15: 5.59
A16: 2.2 | B16: Тефтели | C16: 120 | D16: 18.54 | E16: 12.45 | F16: 7.21 | G16: 216 | H16: 35.58 | I16: 20.75 | J16: 0.92 | K16: 0.04 | L16: 0.09 | M16: 0.35
A17: 183 | B17: Каша гречневая рассыпчатая | C17: 185 | D17: 10.6 | E17: 6.8 | F17: 46.3 | G17: 312 | H17: 17.21 | I17: 162.83 | J17: 5.58 | K17: 0.31 | L17: 0.16 | M17: 0
A18: 309 | B18: компот из чернослива | C18: 200 | D18: 1.2 | E18: 0.1 | F18: 29.5 | G18: 127 | H18: 34.67 | I18: 21.7 | J18: 0.73 | K18: 0.02 | L18: 0.04 | M18: 0.16
A19: 1.5 | B19: хлеб пшеничный | C19: 70 | D19: 3.1 | E19: 7 | F19: 33.8 | G19: 172.2 | H19: 16.1 | I19: 23.1 | J19: 1.4 | K19: 0.11 | L19: 0.04 | M19: 0
A20: 1.6 | B20: хлеб ржаной | C20: 40 | D20: 2.6 | E20: 0.48 | F20: 13.3 | G20: 77.2 | H20: 14 | I20: 18.8 | J20: 1.56 | K20: 0.07 | L20: 0.02 | M20: 0
B21: итого | C21: =SUM(C14:C20) -> 1015 | D21: 46.74 | E21: 36.73 | F21: 177.61 | G21: 1244.4 | H21: 195.74 | I21: 328.43 | J21: 13.98 | K21: 0.84 | L21: 0.5 | M21: 14.14
B22: полдник
A23: 300 | B23: Напиток витаминный | C23: 200 | D23: 0 | E23: 0 | F23: 15.8 | G23: 60 | H23: 0.22 | I23: 0.12 | J23: 0.03 | K23: 0.3 | L23: 0.38 | M23: 0.11
A24: 239 | B24: Запеканка из творога | C24: 170 | D24: 28.9 | E24: 20.3 | F24: 43.2 | G24: 475 | H24: 281 | I24: 42.53 | J24: 1.08 | K24: 0.1 | L24: 0.43 | M24: 0.56
B25: Фрукт в ассортименте
B26: итого | C26: =SUM(C23:C24) -> 370 | D26: =SUM(D23:D24) -> 28.9 | E26: 20.3 | F26: 59 | G26: 535 | H26: 281.22 | I26: 42.65 | J26: 1.11 | K26: 0.4 | L26: 0.81 | M26: 0.67
B27: ужин
A28: 40 | B28: салат,,степной,, | C28: 100 | D28: 1.6 | E28: 3.4 | F28: 8.2 | G28: 74 | H28: 18.46 | I28: 19.53 | J28: 0.61 | K28: 0.06 | L28: 0.05 | M28: 2.98
A29: 80 | B29: Рыба тушеная с овощами | C29: 120 | D29: 10.7 | E29: 5.2 | F29: 5.6 | G29: 113 | H29: 9.71 | I29: 11.61 | J29: 0.34 | K29: 0.02 | L29: 0.02 | M29: 1.55
A30: 146 | B30: картофельное пюре | C30: 200 | D30: 4.1 | E30: 6.3 | F30: 26.7 | G30: 187 | H30: 47.47 | I30: 37.87 | J30: 1.38 | K30: 0.16 | L30: 0.14 | M30: 13.84
A31: 302 | B31: чай с сах.лим. | C31: 200 | D31: 0.2 | E31: 0 | F31: 9.3 | G31: 38 | H31: 2.73 | I31: 0.73 | J31: 0.06 | K31: 0 | L31: 0 | M31: 1.12
A32: 1.5 | B32: хлеб пшеничный | C32: 70 | D32: 3.1 | E32: 7 | F32: 33.8 | G32: 172.2 | H32: 16.1 | I32: 23.1 | J32: 1.4 | K32: 0.11 | L32: 0.04 | M32: 0
A33: 1.6 | B33: хлеб ржаной | C33: 40 | D33: 2.6 | E33: 0.48 | F33: 13.3 | G33: 77.2 | H33: 14 | I33: 18.8 | J33: 1.56 | K33: 0.07 | L33: 0.02 | M33: 0
B34: итого | C34: =SUM(C28:C33) -> 730 | D34: =SUM(D28:D33) -> 22.3 | E34: 22.38 | F34: 96.9 | G34: 661.4 | H34: 108.47 | I34: 111.64 | J34: 5.35 | K34: 0.42 | L34: 0.27 | M34: 19.49
A35: 298 | B35: Кисломолочный напиток | C35: 200 | D35: 5.7 | E35: 6.3 | F35: 17.6 | G35: 151 | H35: 235.2 | I35: 27.44 | J35: 0.23 | K35: 0.06 | L35: 0.33 | M35: 1.37
B36: Итого за день | C36: =C8+C12+C21+C26+C34+C35 -> 3140 | D36: 120.44 | E36: 113.01 | F36: 420.51 | G36: 3187.8 | H36: 1061.4 | I36: 594.82 | J36: 23.75 | K36: 1.97 | L36: 2.22 | M36: 36.37

Sheet 4 день
A1: 4 день
A2: № по сборн. Рецеп. | B2: наименование | C2: выход, гр. | D2: белки,г. | E2: жиры,г. | F2: углеводы,г. | G2: Энерг.цен.,ккал | H2: Минеральные элементы | K2: Витамины
H3: Са | I3: Mg | J3: Fe | K3: В1, мг. | L3: В2, мг. | M3: С, мг.
B4: завтрак
A5: 1.3 | B5: Бутерброд с маслом | C5: 115 | D5: 2.4 | E5: 12.7 | F5: 14.6 | G5: 186 | H5: 8.7 | I5: 9.9 | J5: 0.63 | K5: 0.05 | L5: 0.03 | M5: 0
A6: 188 | B6: каша ячневая молочная | C6: 250 | D6: 5.8 | E6: 4.8 | F6: 36.3 | G6: 224 | H6: 46.14 | I6: 27.88 | J6: 1.03 | K6: 0.13 | L6: 0.05 | M6: 0
A7: 306 | B7: какао с молоком | C7: 200 | D7: 3.6 | E7: 3.3 | F7: 13.7 | G7: 98 | H7: 110.37 | I7: 26.97 | J7: 0.88 | K7: 0.03 | L7: 0.13 | M7: 0.52
B8: итого | C8: =SUM(C5:C7) -> 565 | D8: 11.8 | E8: 20.8 | F8: 64.6 | G8: 508 | H8: 165.21 | I8: 64.75 | J8: 2.54 | K8: 0.21 | L8: 0.21 | M8: 0.52
B9: завтрак 2
A10: 239 | B10: Запеканка из творога | C10: 170 | D10: 28.9 | E10: 20.3 | F10: 43.2 | G10: 475 | H10: 281 | I10: 42.53 | J10: 1.08 | K10: 0.1 | L10: 0.43 | M10: 0.56
A11: 304 | B11: кофейный напиток | C11: 200 | D11: 2.9 | E11: 2.8 | F11: 14.9 | G11: 94 | H11: 105.86 | I11: 12.18 | J11: 0.11 | K11: 0.03 | L11: 0.12 | M11: 0.52
B12: итого | C12: =SUM(C10:C11) -> 370 | D12: =SUM(D10:D11) -> 31.8 | E12: 23.1 | F12: 58.1 | G12: 569 | H12: 386.86 | I12: 54.71 | J12: 1.19 | K12: 0.13 | L12: 0.55 | M12: 1.08
B13: обед
A14: 6 | B14: салат из капусты | C14: 100 | D14: 2.1 | E14: 4.5 | F14: 10.3 | G14: 94 | H14: 58.83 | I14: 20.53 | J14: 0.75 | K14: 0.03 | L14: 0.05 | M14: 21.65
A15: 62 | B15: Суп с лапшой домашней | C15: 300 | D15: 3.4 | E15: 2.8 | F15: 21.4 | G15: 131 | H15: 18.03 | I15: 25.12 | J15: 1.03 | K15: 0.1 | L15: 0.07 | M15: 7.92
A16: 84 | B16: Кнели рыбные припущенные | C16: 106 | D16: 16.6 | E16: 14.1 | F16: 5.6 | G16: 217 | H16: 39.97 | I16: 21.96 | J16: 0.59 | K16: 0.13 | L16: 0.16 | M16: 0.17
A17: 146 | B17: картофельное пюре | C17: 200 | D17: 4.1 | E17: 6.3 | F17: 26.7 | G17: 187 | H17: 47.47 | I17: 37.87 | J17: 1.38 | K17: 0.16 | L17: 0.14 | M17: 13.84
A18: 309 | B18: компот из изюма | C18: 200 | D18: 1.2 | E18: 0.1 | F18: 29.5 | G18: 127 | H18: 34.67 | I18: 21.7 | J18: 0.73 | K18: 0.02 | L18: 0.04 | M18: 0.16
A19: 1.5 | B19: хлеб пшеничный | C19: 70 | D19: 3.1 | E19: 7 | F19: 33.8 | G19: 172.2 | H19: 16.1 | I19: 23.1 | J19: 1.4 | K19: 0.11 | L19: 0.04 | M19: 0
B20: хлеб ржаной | C20: 40 | D20: 2.6 | E20: 0.48 | F20: 13.3 | G20: 77.2 | H20: 14 | I20: 18.8 | J20: 1.56 | K20: 0.07 | L20: 0.02 | M20: 0
B21: итого | C21: =SUM(C14:C20) -> 1016 | D21: 33.1 | E21: 35.28 | F21: 140.6 | G21: 1005.4 | H21: 229.07 | I21: 169.08 | J21: 7.44 | K21: 0.62 | L21: 0.52 | M21: 43.74
B22: полдник
B23: печенье | C23: 50 | D23: 1.5 | E23: 2 | F23: 14.9 | G23: 83.4 | H23: 0 | I23: 4 | J23: 0.4 | K23: 0 | L23: 0 | M23: 0
B24: кефир | C24: 200 | D24: 5.7 | E24: 6.3 | F24: 17.6 | G24: 151 | H24: 235.2 | I24: 27.44 | J24: 0.23 | K24: 0.06 | L24: 0.33 | M24: 1.37
B25: Фрукт в ассортименте
B26: итого | C26: =SUM(C23:C24) -> 250 | D26: =SUM(D23:D24) -> 7.2 | E26: 8.3 | F26: 32.5 | G26: 234.4 | H26: 235.2 | I26: 31.44 | J26: 0.63 | K26: 0.06 | L26: 0.33 | M26: 1.37
B27: ужин
A28: 32 | B28: салат,,Школьный,, | C28: 100 | D28: 1.7 | E28: 7.4 | F28: 7.4 | G28: 108 | H28: 33.4 | I28: 20.86 | J28: 1.13 | K28: 0.04 | L28: 0.04 | M28: 4.58
A29: 100 | B29: котлета,,здоровье,, | C29: 120 | D29: 18.2 | E29: 15.9 | F29: 10.6 | G29: 261 | H29: 49.48 | I29: 37.23 | J29: 1.77 | K29: 0.07 | L29: 0.19 | M29: 0.5
A30: 227 | B30: рожки отварные | C30: 185 | D30: 6.5 | E30: 4.4 | F30: 40 | G30: 233 | H30: 11.06 | I30: 8.77 | J30: 0.88 | K30: 0.08 | L30: 0.02 | M30: 0
B31: чай с сах.лим. | C31: 200 | D31: 0.2 | E31: 0 | F31: 9.3 | G31: 38 | H31: 2.73 | I31: 0.73 | J31: 0.06 | K31: 0 | L31: 0 | M31: 1.12
A32: 1.5 | B32: хлеб пшеничный | C32: 70 | D32: 3.1 | E32: 7 | F32: 33.8 | G32: 172.2 | H32: 16.1 | I32: 23.1 | J32: 1.4 | K32: 0.11 | L32: 0.04 | M32: 0
A33: 1.6 | B33: хлеб ржаной | C33: 40 | D33: 2.6 | E33: 0.48 | F33: 13.3 | G33: 77.2 | H33: 14 | I33: 18.8 | J33: 1.56 | K33: 0.07 | L33: 0.02 | M33: 0
B34: итого | C34: =SUM(C28:C33) -> 715 | D34: =SUM(D28:D33) -> 32.3 | E34: 35.18 | F34: 114.4 | G34: 889.4 | H34: 126.77 | I34: 109.49 | J34: 6.8 | K34: 0.37 | L34: 0.31 | M34: 6.2
A35: 298 | B35: кислом.прод. | C35: 200 | D35: 5.7 | E35: 6.3 | F35: 17.6 | G35: 151 | H35: 235.2 | I35: 27.44 | J35: 0.23 | K35: 0.06 | L35: 0.33 | M35: 1.37
B36: итого за день | C36: =C8+C12+C21+C26+C35+C34 -> 3116 | D36: =D8+D12+D21+D26+D35 -> 89.6 | E36: 93.78 | F36: 313.4 | G36: 2467.8 | H36: 1251.54 | I36: 347.42 | J36: 12.03 | K36: 1.08 | L36: 1.94 | M36: 48.08

Sheet 5 день
A1: 5 день
B2: № по сборн. Рецеп. | C2: наименование | D2: выход, гр. | E2: белки,г. | F2: жиры,г. | G2: углеводы,г. | H2: Энерг.цен.,ккал | I2: Минеральные элементы | L2: Витамины
I3: Са | J3: Mg | K3: Fe | L3: В1, мг. | M3: В2, мг. | N3: С, мг.
C4: завтрак
B5: 1.3 | C5: Бутерброд с маслом | D5: 115 | E5: 2.4 | F5: 12.7 | G5: 14.6 | H5: 186 | I5: 8.7 | J5: 9.9 | K5: 0.63 | L5: 0.05 | M5: 0.03 | N5: 0
B6: 186 | C6: каша манная молочная | D6: 250 | E6: 7.7 | F6: 10.3 | G6: 37.9 | H6: 278 | I6: 116.74 | J6: 17.38 | K6: 0.38 | L6: 0.06 | M6: 0.14 | N6: 0.49
B7: 1.4 | C7: сыр голланд. | D7: 30 | E7: 7.9 | F7: 8 | G7: 0 | H7: 105 | I7: 300 | J7: 16.5 | K7: 0.21 | L7: 0.01 | M7: 0.11 | N7: 0.21
C8: какао с молоком | D8: 200 | E8: 3.6 | F8: 3.3 | G8: 13.7 | H8: 98 | I8: 110.37 | J8: 26.97 | K8: 0.88 | L8: 0.03 | M8: 0.13 | N8: 0.52
C9: итого | D9: =SUM(D5:D8) -> 595 | E9: 21.6 | F9: 34.3 | G9: 66.2 | H9: 667 | I9: 535.81 | J9: 70.75 | K9: 2.1 | L9: 0.15 | M9: 0.41 | N9: 1.22
C10: завтрак 2
B11: 1.1 | C11: Бутеброд с сыром | D11: 60 | E11: 4.1 | F11: 2.7 | G11: 0 | H11: 41 | I11: 5.63 | J11: 4.82 | K11: 0.85 | L11: 0.01 | M11: 0.02 | N11: 0
B12: 302 | C12: чай с сахаром,лимоном | D12: 200 | E12: 0.2 | F12: 0 | G12: 9.3 | H12: 38 | I12: 2.73 | J12: 0.73 | K12: 0.06 | L12: 0 | M12: 0 | N12: 1.12
C13: итого | D13: =SUM(D11:D12) -> 260 | E13: =SUM(E11:E12) -> 4.3 | F13: 2.7 | G13: 9.3 | H13: 79 | I13: 8.36 | J13: 5.55 | K13: 0.91 | L13: 0.01 | M13: 0.02 | N13: 1.12
C14: обед
B15: 19 | C15: салат из моркови с яблоком | D15: 100 | E15: 0.9 | F15: 3.7 | G15: 9 | H15: 76 | I15: 21.46 | J15: 26.03 | K15: 0.89 | L15: 0.04 | M15: 0.05 | N15: 5.15
B16: 58 | C16: Борщ со свежей капустой | D16: 300 | E16: 2.4 | F16: 6.4 | G16: 15.4 | H16: 133 | I16: 48.85 | J16: 27.47 | K16: 1.3 | L16: 0.06 | M16: 0.07 | N16: 9.54
B17: 119 | C17: плов из говядины | D17: 210 | E17: 21.9 | F17: 21.2 | G17: 35.5 | H17: 428 | I17: 17.94 | J17: 49.42 | K17: 3.14 | L17: 0.06 | M17: 0.13 | N17: 0.36
B18: 319 | C18: напиток из шиповника | D18: 200 | E18: 0.7 | F18: 0.3 | G18: 29 | H18: 127 | I18: 12.22 | J18: 3.23 | K18: 0.64 | L18: 0.01 | M18: 0.05 | N18: 80
B19: 1.5 | C19: хлеб пшеничный | D19: 70 | E19: 3.1 | F19: 7 | G19: 33.8 | H19: 172.2 | I19: 16.1 | J19: 23.1 | K19: 1.4 | L19: 0.11 | M19: 0.04 | N19: 0
B20: 1.6 | C20: хлеб ржаной | D20: 40 | E20: 2.6 | F20: 0.48 | G20: 13.3 | H20: 77.2 | I20: 14 | J20: 18.8 | K20: 1.56 | L20: 0.07 | M20: 0.02 | N20: 0
C21: итого | D21: =SUM(D15:D20) -> 920 | E21: 31.6 | F21: 39.08 | G21: 136 | H21: 1013.4 | I21: 130.57 | J21: 148.05 | K21: 8.93 | L21: 0.35 | M21: 0.36 | N21: 95.05
C22: полдник
B23: 324 | C23: кисель из конц. | D23: 200 | E23: 0 | F23: 0 | G23: 20 | H23: 76 | I23: 0.48 | J23: 0 | K23: 0.06 | L23: 0 | M23: 0 | N23: 0
C24: вафли | D24: 50 | E24: 1.5 | F24: 2 | G24: 14.9 | H24: 83.4 | I24: 0 | J24: 4 | K24: 0.4 | L24: 0 | M24: 0 | N24: 0
C25: Фрукт в ассортименте
C26: итого | D26: =SUM(D23:D24) -> 250 | E26: =SUM(E23:E24) -> 1.5 | F26: 2 | G26: 34.9 | H26: 159.4 | I26: 0.48 | J26: 4 | K26: 0.46 | L26: 0 | M26: 0 | N26: 0
C27: ужин
B28: 8 | C28: салат из капусты с яблоками | D28: 100 | E28: 1.8 | F28: 4.6 | G28: 9.6 | H28: 91 | I28: 47.25 | J28: 16.42 | K28: 1.07 | L28: 0.03 | M28: 0.4 | N28: 19.55
B29: 79 | C29: рыба припущенная | D29: 120 | E29: 21.2 | F29: 1.2 | G29: 0.7 | H29: 99 | I29: 1.95 | J29: 1.75 | K29: 0.05 | L29: 0.01 | M29: 0.01 | N29: 0.11
B30: 146 | C30: картофельное пюре | D30: 200 | E30: 4.1 | F30: 6.3 | G30: 26.7 | H30: 187 | I30: 47.47 | J30: 37.87 | K30: 1.38 | L30: 0.16 | M30: 0.14 | N30: 13.84
B31: 302 | C31: чай с сахаром,лимоном | D31: 200 | E31: 0.2 | F31: 0 | G31: 9.3 | H31: 38 | I31: 2.73 | J31: 0.73 | K31: 0.06 | L31: 0 | M31: 0 | N31: 1.12
B32: 1.5 | C32: хлеб пшеничный | D32: 70 | E32: 3.1 | F32: 7 | G32: 33.8 | H32: 172.2 | I32: 16.1 | J32: 23.1 | K32: 1.4 | L32: 0.11 | M32: 0.04 | N32: 0
B33: 1.6 | C33: хлеб ржаной | D33: 40 | E33: 2.6 | F33: 0.48 | G33: 13.3 | H33: 77.2 | I33: 14 | J33: 18.8 | K33: 1.56 | L33: 0.07 | M33: 0.02 | N33: 0
C34: итого | D34: =SUM(D28:D33) -> 730 | E34: =SUM(E28:E33) -> 33 | F34: 19.58 | G34: 93.4 | H34: 664.4 | I34: 129.5 | J34: 98.67 | K34: 5.52 | L34: 0.38 | M34: 0.61 | N34: 34.62
B35: 298 | C35: Кисломолочный продукт | D35: 200 | E35: 5.7 | F35: 6.3 | G35: 17.6 | H35: 151 | I35: 235.2 | J35: 27.44 | K35: 0.23 | L35: 0.06 | M35: 0.33 | N35: 1.37
C36: Итого за день | D36: =D9+D13+D21+D26+D34+D35 -> 2955 | E36: 97.7 | F36: 103.96 | G36: 357.4 | H36: 2734.2 | I36: 1039.92 | J36: 354.46 | K36: 18.15 | L36: 0.95 | M36: 1.73 | N36: 133.38

Sheet 6 день
A1: 6 день
B2: № по сборн. Рецеп. | C2: наименование | D2: выход, гр. | E2: белки,г. | F2: жиры,г. | G2: углеводы,г. | H2: Энерг.цен.,ккал | I2: Минеральные элементы | L2: Витамины
I3: Са | J3: Mg | K3: Fe | L3: В1, мг. | M3: В2, мг. | N3: С, мг.
C4: завтрак
B5: 1.3 | C5: Бутерброд с маслом | D5: 115 | E5: 2.4 | F5: 12.7 | G5: 14.6 | H5: 186 | I5: 8.7 | J5: 9.9 | K5: 0.63 | L5: 0.05 | M5: 0.03 | N5: 0
B6: 186 | C6: каша пшенная молочная | D6: 250 | E6: 6.7 | F6: 7.6 | G6: 32.6 | H6: 222 | I6: 120.25 | J6: 32.58 | K6: 1.65 | L6: 0.12 | M6: 0.16 | N6: 0.47
B7: 1.4 | C7: сыр голланд. | D7: 30 | E7: 7.9 | F7: 8 | G7: 0 | H7: 105 | I7: 300 | J7: 16.5 | K7: 0.21 | L7: 0.01 | M7: 0.11 | N7: 0.21
C8: кофейный напиток | D8: 200 | E8: 2.9 | F8: 2.8 | G8: 14.9 | H8: 94 | I8: 105.86 | J8: 12.18 | K8: 0.11 | L8: 0.03 | M8: 0.12 | N8: 0.52
C9: итого | D9: =SUM(D5:D8) -> 595 | E9: 19.9 | F9: 31.1 | G9: 62.1 | H9: 607 | I9: 534.81 | J9: 71.16 | K9: 2.6 | L9: 0.21 | M9: 0.42 | N9: 1.2
C10: завтрак 2
C11: печенье | D11: 50 | E11: 1.5 | F11: 2 | G11: 14.9 | H11: 83.4 | I11: 0 | J11: 4 | K11: 0.4 | L11: 0 | M11: 0 | N11: 0
C12: сок фруктовый | D12: 200 | E12: 0.5 | F12: 0 | G12: 10.6 | H12: 44 | I12: 7.85 | J12: 2.09 | K12: 0.79 | L12: 0.004 | M12: 0.005 | N12: 0.48
C13: итого | D13: =SUM(D11:D12) -> 250 | E13: =SUM(E11:E12) -> 2 | F13: 2 | G13: 25.5 | H13: 127.4 | I13: 7.85 | J13: 6.09 | K13: 1.19 | L13: 0.004 | M13: 0.005 | N13: 0.48
C14: обед
B15: 26 | C15: салат из свеклы с изюмом | D15: 100 | E15: 1.3 | F15: 5.8 | G15: 15.7 | H15: 121 | I15: 24.02 | J15: 14.07 | K15: 0.9 | L15: 0.01 | M15: 0.02 | N15: 0.65
B16: 67 | C16: суп Крестьянский | D16: 300 | E16: 2.8 | F16: 6.6 | G16: 15.3 | H16: 138 | I16: 38.36 | J16: 21.53 | K16: 0.8 | L16: 0.06 | M16: 0.05 | N16: 9.61
B17: 122 | C17: запеканка картоф.с мясом | D17: 250 | E17: 18.4 | F17: 17.4 | G17: 30.7 | H17: 362 | I17: 28.99 | J17: 57.29 | K17: 2.42 | L17: 0.11 | M17: 0.16 | N17: 1.29
B18: 309 | C18: компот из кураги | D18: 200 | E18: 1.2 | F18: 0.1 | G18: 29.5 | H18: 127 | I18: 34.67 | J18: 21.7 | K18: 0.73 | L18: 0.02 | M18: 0.04 | N18: 0.16
B19: 1.5 | C19: хлеб пшеничный | D19: 70 | E19: 3.1 | F19: 7 | G19: 33.8 | H19: 172.2 | I19: 16.1 | J19: 23.1 | K19: 1.4 | L19: 0.11 | M19: 0.04 | N19: 0
B20: 1.6 | C20: хлеб ржаной | D20: 40 | E20: 2.6 | F20: 0.48 | G20: 13.3 | H20: 77.2 | I20: 14 | J20: 18.8 | K20: 1.56 | L20: 0.07 | M20: 0.02 | N20: 0
C21: итого | D21: =SUM(D15:D20) -> 960 | E21: 29.4 | F21: 37.38 | G21: 138.3 | H21: 997.4 | I21: 156.14 | J21: 156.49 | K21: 7.81 | L21: 0.38 | M21: 0.33 | N21: 11.71
C22: полдник
B23: 300 | C23: Чай с сахаром | D23: 200 | E23: 0.2 | F23: 0 | G23: 9.1 | H23: 36 | I23: 0.26 | J23: 0 | K23: 0.03 | L23: 0 | M23: 0 | N23: 0
B24: 257 | C24: блины | D24: 160 | E24: 11.4 | F24: 20.2 | G24: 49.9 | H24: 433 | I24: 137.03 | J24: 23.86 | K24: 1.07 | L24: 0.12 | M24: 0.2 | N24: 0.57
C25: Фрукт в ассортименте
C26: итого | D26: =SUM(D23:D24) -> 360 | E26: =SUM(E23:E24) -> 11.6 | F26: 20.2 | G26: 59 | H26: 469 | I26: 137.29 | J26: 23.86 | K26: 1.1 | L26: 0.12 | M26: 0.2 | N26: 0.57
C27: ужин
B28: 40 | C28: салат,,степной,, | D28: 100 | E28: 1.6 | F28: 3.4 | G28: 8.2 | H28: 74 | I28: 18.46 | J28: 19.53 | K28: 0.61 | L28: 0.06 | M28: 0.05 | N28: 2.98
B29: 100 | C29: Котлета "Здоровье" | D29: 120 | E29: 18.2 | F29: 15.9 | G29: 10.6 | H29: 261 | I29: 49.48 | J29: 37.23 | K29: 1.77 | L29: 0.07 | M29: 0.19 | N29: 0.5
B30: 227 | C30: рожки отварные | D30: 185 | E30: 6.5 | F30: 4.4 | G30: 40 | H30: 233 | I30: 11.06 | J30: 8.77 | K30: 0.88 | L30: 0.08 | M30: 0.02 | N30: 0
B31: 302 | C31: чай с сахаром,лимоном | D31: 200 | E31: 0.2 | F31: 0 | G31: 9.3 | H31: 38 | I31: 2.73 | J31: 0.73 | K31: 0.06 | L31: 0 | M31: 0 | N31: 1.12
B32: 1.5 | C32: хлеб пшеничный | D32: 70 | E32: 3.1 | F32: 7 | G32: 33.8 | H32: 172.2 | I32: 16.1 | J32: 23.1 | K32: 1.4 | L32: 0.11 | M32: 0.04 | N32: 0
B33: 1.6 | C33: хлеб ржаной | D33: 40 | E33: 2.6 | F33: 0.48 | G33: 13.3 | H33: 77.2 | I33: 14 | J33: 18.8 | K33: 1.56 | L33: 0.07 | M33: 0.02 | N33: 0
C34: итого | D34: =SUM(D28:D33) -> 715 | E34: =SUM(E28:E33) -> 32.2 | F34: 31.18 | G34: 115.2 | H34: 855.4 | I34: 111.83 | J34: 108.16 | K34: 6.28 | L34: 0.39 | M34: 0.32 | N34: 4.6
B35: 298 | C35: Кисломолочный продукт | D35: 200 | E35: 5.7 | F35: 6.3 | G35: 17.6 | H35: 151 | I35: 235.2 | J35: 27.44 | K35: 0.23 | L35: 0.06 | M35: 0.33 | N35: 1.37
C36: Итого за день | D36: =D9+D13+D21+D26+D34+D35 -> 3080 | E36: =E9+E13+E21+E26+E34+E35 -> 100.8 | F36: 128.16 | G36: 417.7 | H36: 3207.2 | I36: 1183.12 | J36: 393.2 | K36: 19.21 | L36: 1.164 | M36: 1.605 | N36: 19.93

Sheet 7 день
A1: 7 день
B2: № по сборн. Рецеп. | C2: наименование | D2: выход, гр. | E2: белки,г. | F2: жиры,г. | G2: углеводы,г. | H2: Энерг.цен.,ккал | I2: Минеральные элементы | L2: Витамины
I3: Са | J3: Mg | K3: Fe | L3: В1, мг. | M3: В2, мг. | N3: С, мг.
C4: завтрак
B5: 1.3 | C5: Бутерброд с маслом | D5: 115 | E5: 2.4 | F5: 12.7 | G5: 14.6 | H5: 186 | I5: 8.7 | J5: 9.9 | K5: 0.63 | L5: 0.05 | M5: 0.03 | N5: 0
B6: 192 | C6: каша,,геркулес,, | D6: 250 | E6: 7.2 | F6: 9.1 | G6: 30.8 | H6: 239 | I6: 120.32 | J6: 57.76 | K6: 1.46 | L6: 0.16 | M6: 0.14 | N6: 0.18
B7: 1.4 | C7: сыр голланд. | D7: 30 | E7: 7.9 | F7: 8 | G7: 0 | H7: 105 | I7: 300 | J7: 16.5 | K7: 0.21 | L7: 0.01 | M7: 0.11 | N7: 0.21
B8: 306 | C8: какао с молоком | D8: 200 | E8: 3.6 | F8: 3.3 | G8: 13.7 | H8: 98 | I8: 110.37 | J8: 26.97 | K8: 0.88 | L8: 0.03 | M8: 0.13 | N8: 0.52
C9: итого | D9: =SUM(D5:D8) -> 595 | E9: =SUM(E5:E8) -> 21.1 | F9: 33.1 | G9: 59.1 | H9: 628 | I9: 539.39 | J9: 111.13 | K9: 3.18 | L9: 0.25 | M9: 0.41 | N9: 0.91
C10: завтрак 2
C11: вафли | D11: 50 | E11: 1.5 | F11: 2 | G11: 14.9 | H11: 83.4 | I11: 0 | J11: 4 | K11: 0.4 | L11: 0 | M11: 0 | N11: 0
C12: сок фруктовый | D12: 200 | E12: 0.5 | F12: 0 | G12: 10.6 | H12: 44 | I12: 7.85 | J12: 2.09 | K12: 0.79 | L12: 0.004 | M12: 0.005 | N12: 0.48
C13: итого | D13: =SUM(D11:D12) -> 250 | E13: =SUM(E11:E12) -> 2 | F13: 2 | G13: 25.5 | H13: 127.4 | I13: 7.85 | J13: 6.09 | K13: 1.19 | L13: 0.004 | M13: 0.005 | N13: 0.48
C14: обед
B15: 17 | C15: салат из моркови с сахаром | D15: 100 | E15: 1.1 | F15: 8.9 | G15: 8.3 | H15: 120 | I15: 20.99 | J15: 29.09 | K15: 0.54 | L15: 0.04 | M15: 0.05 | N15: 1.76
B16: 65 | C16: Суп с бобовами | D16: 300 | E16: 9 | F16: 5.4 | G16: 38.9 | H16: 253 | I16: 46.41 | J16: 52.31 | K16: 2.77 | L16: 0.24 | M16: 0.1 | N16: 5.59
B17: 133 | C17: курица отварная | D17: 100 | E17: 26.1 | F17: 24.6 | G17: 0.3 | H17: 327 | I17: 22.58 | J17: 24.33 | K17: 2.14 | L17: 0.08 | M17: 0.18 | N17: 1.27
B18: 8.1 | C18: рис отварной | D18: 180 | E18: 4.5 | F18: 7 | G18: 45.3 | H18: 271 | I18: 21.17 | J18: 18.15 | K18: 0.5 | L18: 0.02 | M18: 0.02 | N18: 0
B19: 324 | C19: кисель из конц. | D19: 200 | E19: 0 | F19: 0 | G19: 20 | H19: 76 | I19: 0.48 | J19: 0 | K19: 0.06 | L19: 0 | M19: 0 | N19: 0
B20: 1.5 | C20: хлеб пшеничный | D20: 70 | E20: 3.1 | F20: 7 | G20: 33.8 | H20: 172.2 | I20: 16.1 | J20: 23.1 | K20: 1.4 | L20: 0.11 | M20: 0.04 | N20: 0
B21: 1.6 | C21: хлеб ржаной | D21: 40 | E21: 2.6 | F21: 0.48 | G21: 13.3 | H21: 77.2 | I21: 14 | J21: 18.8 | K21: 1.56 | L21: 0.07 | M21: 0.02 | N21: 0
C22: итого | D22: =SUM(D15:D21) -> 990 | E22: 46.4 | F22: 53.38 | G22: 159.9 | H22: 1296.4 | I22: 141.73 | J22: 165.78 | K22: 8.97 | L22: 0.56 | M22: 0.41 | N22: 8.62
C23: полдник
B24: 300 | C24: Чай с сахаром | D24: 200 | E24: 0.2 | F24: 0 | G24: 9.1 | H24: 36 | I24: 0.26 | J24: 0 | K24: 0.03 | L24: 0 | M24: 0 | N24: 0
B25: 289 | C25: булочка сдобная | D25: 100 | E25: 7.8 | F25: 8.5 | G25: 52.3 | H25: 321 | I25: 26.96 | J25: 10.57 | K25: 0.91 | L25: 0.08 | M25: 0.07 | N25: 0.05
C26: Фрукт в ассортименте
C27: итого | D27: =SUM(D24:D25) -> 300 | E27: =SUM(E24:E25) -> 8 | F27: 8.5 | G27: 61.4 | H27: 357 | I27: 27.22 | J27: 10.57 | K27: 0.94 | L27: 0.08 | M27: 0.07 | N27: 0.05
C28: ужин
B29: 6 | C29: салат из капусты | D29: 100 | E29: 2.1 | F29: 4.5 | G29: 10.3 | H29: 94 | I29: 58.83 | J29: 20.53 | K29: 0.75 | L29: 0.03 | M29: 0.05 | N29: 21.65
B30: 80 | C30: Рыба тушеная с овощами | D30: 120 | E30: 10.7 | F30: 5.2 | G30: 5.6 | H30: 113 | I30: 9.71 | J30: 11.61 | K30: 0.34 | L30: 0.02 | M30: 0.02 | N30: 1.55
B31: 146 | C31: картофельное пюре | D31: 200 | E31: 4.1 | F31: 6.3 | G31: 26.7 | H31: 187 | I31: 47.47 | J31: 37.87 | K31: 1.38 | L31: 0.16 | M31: 0.14 | N31: 13.84
B32: 302 | C32: чай с сахаром,лимоном | D32: 200 | E32: 0.2 | F32: 0 | G32: 9.3 | H32: 38 | I32: 2.73 | J32: 0.73 | K32: 0.06 | L32: 0 | M32: 0 | N32: 1.12
B33: 1.5 | C33: хлеб пшеничный | D33: 70 | E33: 3.1 | F33: 7 | G33: 33.8 | H33: 172.2 | I33: 16.1 | J33: 23.1 | K33: 1.4 | L33: 0.11 | M33: 0.04 | N33: 0
B34: 1.6 | C34: хлеб ржаной | D34: 40 | E34: 2.6 | F34: 0.48 | G34: 13.3 | H34: 77.2 | I34: 14 | J34: 18.8 | K34: 1.56 | L34: 0.07 | M34: 0.02 | N34: 0
C35: итого | D35: =SUM(D29:D34) -> 730 | E35: =SUM(E29:E34) -> 22.8 | F35: 23.48 | G35: 99 | H35: 681.4 | I35: 148.84 | J35: 112.64 | K35: 5.49 | L35: 0.39 | M35: 0.27 | N35: 38.16
B36: 298 | C36: Кисломолочный продукт | D36: 200 | E36: 5.7 | F36: 6.3 | G36: 17.6 | H36: 151 | I36: 235.2 | J36: 27.44 | K36: 0.23 | L36: 0.06 | M36: 0.33 | N36: 1.37
C37: Итого за день | D37: =D9+D13+D22+D27+D35+D36 -> 3065 | E37: =E9+E13+E22+E27+E35+E36 -> 106 | F37: 126.76 | G37: 422.5 | H37: 3241.2 | I37: 1100.23 | J37: 433.65 | K37: 20 | L37: 1.344 | M37: 1.495 | N37: 49.59

Sheet 8 день
A1: 8 день
B2: № по сборн. Рецеп. | C2: наименование | D2: выход, гр. | E2: белки,г. | F2: жиры,г. | G2: углеводы,г. | H2: Энерг.цен.,ккал | I2: Минеральные элементы | L2: Витамины
I3: Са | J3: Mg | K3: Fe | L3: В1, мг. | M3: В2, мг. | N3: С, мг.
C4: завтрак
B5: 1.3 | C5: Бутерброд с маслом | D5: 115 | E5: 2.4 | F5: 12.7 | G5: 14.6 | H5: 186 | I5: 8.7 | J5: 9.9 | K5: 0.63 | L5: 0.05 | M5: 0.03 | N5: 0
B6: 208 | C6: каша пшенная молочная | D6: 250 | E6: 6.7 | F6: 7.6 | G6: 32.6 | H6: 222 | I6: 120.25 | J6: 32.58 | K6: 1.65 | L6: 0.12 | M6: 0.16 | N6: 0.47
B7: 304 | C7: кофейный напиток | D7: 200 | E7: 2.9 | F7: 2.8 | G7: 14.9 | H7: 94 | I7: 105.86 | J7: 12.18 | K7: 0.11 | L7: 0.03 | M7: 0.12 | N7: 0.52
C8: итого | D8: =SUM(D5:D7) -> 565 | E8: 12 | F8: 23.1 | G8: 62.1 | H8: 502 | I8: 234.81 | J8: 54.66 | K8: 2.39 | L8: 0.2 | M8: 0.31 | N8: 0.99
C9: завтрак 2
B10: 302 | C10: чай с сахаром | D10: 200 | E10: 0.2 | F10: 0 | G10: 9.3 | H10: 38 | I10: 2.73 | J10: 0.73 | K10: 0.06 | L10: 0 | M10: 0 | N10: 1.12
B11: 1.1 | C11: Бутеброд с сыром | D11: 60 | E11: 4.1 | F11: 2.7 | G11: 0 | H11: 41 | I11: 5.63 | J11: 4.82 | K11: 0.85 | L11: 0.01 | M11: 0.02 | N11: 0
C12: итого | D12: =SUM(D10:D11) -> 260 | E12: =SUM(E10:E11) -> 4.3 | F12: 2.7 | G12: 9.3 | H12: 79 | I12: 8.36 | J12: 5.55 | K12: 0.91 | L12: 0.01 | M12: 0.02 | N12: 1.12
C13: обед
B14: 40 | C14: салат,,степной,, | D14: 100 | E14: 1.6 | F14: 3.4 | G14: 8.2 | H14: 74 | I14: 18.46 | J14: 19.53 | K14: 0.61 | L14: 0.06 | M14: 0.05 | N14: 2.98
B15: 59 | C15: Рассольник | D15: 300 | E15: 2.9 | F15: 7.5 | G15: 17.6 | H15: 156 | I15: 40.68 | J15: 32.54 | K15: 1.23 | L15: 0.12 | M15: 0.09 | N15: 12.61
B16: 142 | C16: кнели курин.с рисом | D16: 100 | E16: 17.1 | F16: 23.6 | G16: 6.1 | H16: 306 | I16: 25.66 | J16: 19.74 | K16: 1.42 | L16: 0.06 | M16: 0.14 | N16: 0.74
B17: 227 | C17: рожки отварные | D17: 185 | E17: 6.5 | F17: 4.4 | G17: 40 | H17: 233 | I17: 11.06 | J17: 8.77 | K17: 0.88 | L17: 0.08 | M17: 0.02 | N17: 0
B18: 317 | C18: напиток витамин. | D18: 200 | E18: 0 | F18: 0 | G18: 15.8 | H18: 60 | I18: 220 | J18: 12.18 | K18: 0.16 | L18: 0.3 | M18: 0.38 | N18: 0.5
B19: 1.5 | C19: хлеб пшеничный | D19: 70 | E19: 3.1 | F19: 7 | G19: 33.8 | H19: 172.2 | I19: 16.1 | J19: 23.1 | K19: 1.4 | L19: 0.11 | M19: 0.04 | N19: 0
B20: 1.6 | C20: хлеб ржаной | D20: 40 | E20: 2.6 | F20: 0.48 | G20: 13.3 | H20: 77.2 | I20: 14 | J20: 18.8 | K20: 1.56 | L20: 0.07 | M20: 0.02 | N20: 0
C21: итого | D21: =SUM(D14:D20) -> 995 | E21: 33.8 | F21: 46.38 | G21: 134.8 | H21: 1078.4 | I21: 345.96 | J21: 134.66 | K21: 7.26 | L21: 0.8 | M21: 0.74 | N21: 16.83
C22: полдник
B23: 284 | C23: шанежка наливная | D23: 100 | E23: 6.6 | F23: 6.1 | G23: 40.3 | H23: 249 | I23: 14.2 | J23: 9.34 | K23: 0.77 | L23: 0.08 | M23: 0.04 | N23: 0
B24: 319 | C24: напиток из шиповника | D24: 200 | E24: 0.7 | F24: 0.3 | G24: 29 | H24: 127 | I24: 12.22 | J24: 3.23 | K24: 0.64 | L24: 0.01 | M24: 0.05 | N24: 80
C25: Фрукт в ассортименте
C26: итого | D26: =SUM(D23:D24) -> 300 | E26: =SUM(E23:E24) -> 7.3 | F26: 6.4 | G26: 69.3 | H26: 376 | I26: 26.42 | J26: 12.57 | K26: 1.41 | L26: 0.09 | M26: 0.09 | N26: 80
C27: ужин
B28: 36 | C28: салат,,мазайка,, | D28: 100 | E28: 1.6 | F28: 6.5 | G28: 9.1 | H28: 114 | I28: 18.08 | J28: 17.99 | K28: 0.54 | L28: 0.04 | M28: 0.04 | N28: 2.16
B29: 119 | C29: плов из говядины | D29: 210 | E29: 21.9 | F29: 21.2 | G29: 35.5 | H29: 428 | I29: 17.94 | J29: 49.42 | K29: 3.14 | L29: 0.06 | M29: 0.13 | N29: 0.36
B30: 302 | C30: чай с сахаром,лимоном | D30: 200 | E30: 0.2 | F30: 0 | G30: 9.3 | H30: 38 | I30: 2.73 | J30: 0.73 | K30: 0.06 | L30: 0 | M30: 0 | N30: 1.12
B31: 1.5 | C31: хлеб пшеничный | D31: 70 | E31: 3.1 | F31: 7 | G31: 33.8 | H31: 172.2 | I31: 16.1 | J31: 23.1 | K31: 1.4 | L31: 0.11 | M31: 0.04 | N31: 0
B32: 1.6 | C32: хлеб ржаной | D32: 40 | E32: 2.6 | F32: 0.48 | G32: 13.3 | H32: 77.2 | I32: 14 | J32: 18.8 | K32: 1.56 | L32: 0.07 | M32: 0.02 | N32: 0
C33: итого | D33: =SUM(D28:D32) -> 620 | E33: =SUM(E28:E32) -> 29.4 | F33: 35.18 | G33: 101 | H33: 829.4 | I33: 68.85 | J33: 110.04 | K33: 6.7 | L33: 0.28 | M33: 0.23 | N33: 3.64
B34: 298 | C34: Кисломолочный продукт | D34: 200 | E34: 5.7 | F34: 6.3 | G34: 17.6 | H34: 151 | I34: 235.2 | J34: 27.44 | K34: 0.23 | L34: 0.06 | M34: 0.33 | N34: 1.37
C35: итого за день | D35: =D8+D12+D21+D26+D33+D34 -> 2940 | E35: 92.5 | F35: 120.06 | G35: 394.1 | H35: 3015.8 | I35: 919.6 | J35: 344.92 | K35: 18.9 | L35: 1.44 | M35: 1.72 | N35: 103.95

Sheet 9 день
A1: 9 день
B2: № по сборн. Рецеп. | C2: блюдо | D2: выход, гр. | E2: белки,г. | F2: жиры,г. | G2: углеводы,г. | H2: Энерг.цен.,ккал | I2: Минеральные элементы | L2: Витамины
I3: Са | J3: Mg | K3: Fe | L3: В1, мг. | M3: В2, мг. | N3: С, мг.
C4: завтрак
B5: 1.3 | C5: Бутерброд с маслом | D5: 115 | E5: 2.4 | F5: 12.7 | G5: 14.6 | H5: 186 | I5: 8.7 | J5: 9.9 | K5: 0.63 | L5: 0.05 | M5: 0.03 | N5: 0
B6: 210 | C6: каша,,дружба,, | D6: 250 | E6: 7.9 | F6: 10.8 | G6: 41.9 | H6: 300 | I6: 159.3 | J6: 46.37 | K6: 1 | L6: 0.15 | M6: 0.2 | N6: 0.67
C7: какао с молоком | D7: 200 | E7: 3.6 | F7: 3.3 | G7: 13.7 | H7: 98 | I7: 110.37 | J7: 26.97 | K7: 0.88 | L7: 0.03 | M7: 0.13 | N7: 0.52
C8: итого | D8: =SUM(D5:D7) -> 565 | E8: 13.9 | F8: 26.8 | G8: 70.2 | H8: 584 | I8: 278.37 | J8: 83.24 | K8: 2.51 | L8: 0.23 | M8: 0.36 | N8: 1.19
C9: завтрак 2
B10: 297 | C10: Йогурт | D10: 200 | E10: 8 | F10: 2.9 | G10: 11.6 | H10: 109 | I10: 243.04 | J10: 29.4 | K10: 0.2 | L10: 0.06 | M10: 0.29 | N10: 1.18
C11: печенье | D11: 50 | E11: 1.5 | F11: 2 | G11: 14.9 | H11: 83.4 | I11: 0 | J11: 4 | K11: 0.4 | L11: 0 | M11: 0 | N11: 0
C12: итого | D12: =SUM(D10:D11) -> 250 | E12: =SUM(E10:E11) -> 9.5 | F12: 4.9 | G12: 26.5 | H12: 192.4 | I12: 243.04 | J12: 33.4 | K12: 0.6 | L12: 0.06 | M12: 0.29 | N12: 1.18
C13: обед
B14: 42 | C14: Винегрет овощной | D14: 100 | E14: 1.4 | F14: 2.6 | G14: 8.2 | H14: 66 | I14: 28.03 | J14: 19.49 | K14: 0.84 | L14: 0.05 | M14: 0.04 | N14: 13.28
B15: 63 | C15: суп карт.с крупой | D15: 300 | E15: 2.6 | F15: 2.1 | G15: 19.3 | H15: 113 | I15: 15.74 | J15: 24.01 | K15: 0.92 | L15: 0.08 | M15: 0.06 | N15: 7
B16: 80 | C16: Рыба тушеная с овощами | D16: 120 | E16: 10.7 | F16: 5.2 | G16: 5.6 | H16: 113 | I16: 9.71 | J16: 11.61 | K16: 0.34 | L16: 0.02 | M16: 0.02 | N16: 1.55
B17: 146 | C17: картофельное пюре | D17: 200 | E17: 4.1 | F17: 6.3 | G17: 26.7 | H17: 187 | I17: 47.47 | J17: 37.87 | K17: 1.38 | L17: 0.16 | M17: 0.14 | N17: 13.84
B18: 309 | C18: компот из кураги | D18: 200 | E18: 1.2 | F18: 0.1 | G18: 29.5 | H18: 127 | I18: 34.67 | J18: 21.7 | K18: 0.73 | L18: 0.02 | M18: 0.04 | N18: 0.16
B19: 1.5 | C19: хлеб пшеничный | D19: 70 | E19: 3.1 | F19: 7 | G19: 33.8 | H19: 172.2 | I19: 16.1 | J19: 23.1 | K19: 1.4 | L19: 0.11 | M19: 0.04 | N19: 0
B20: 1.6 | C20: хлеб ржаной | D20: 40 | E20: 2.6 | F20: 0.48 | G20: 13.3 | H20: 77.2 | I20: 14 | J20: 18.8 | K20: 1.56 | L20: 0.07 | M20: 0.02 | N20: 0
C21: итого | D21: =SUM(D14:D20) -> 1030 | E21: 25.7 | F21: 23.78 | G21: 136.4 | H21: 855.4 | I21: 165.72 | J21: 156.58 | K21: 7.17 | L21: 0.51 | M21: 0.36 | N21: 35.83
C22: полдник
B23: 300 | C23: чай с сах. | D23: 200 | E23: 0.2 | F23: 0 | G23: 9.1 | H23: 36 | I23: 0.26 | J23: 0 | K23: 0.03 | L23: 0 | M23: 0 | N23: 0
B24: 257 | C24: блины | D24: 160 | E24: 11.4 | F24: 20.2 | G24: 49.9 | H24: 433 | I24: 137.03 | J24: 23.86 | K24: 1.07 | L24: 0.12 | M24: 0.2 | N24: 0.57
C25: Фрукт в ассортименте
C26: итого | D26: =SUM(D23:D24) -> 360 | E26: =SUM(E23:E24) -> 11.6 | F26: 20.2 | G26: 59 | H26: 469 | I26: 137.29 | J26: 23.86 | K26: 1.1 | L26: 0.12 | M26: 0.2 | N26: 0.57
C27: ужин
B28: 10 | C28: салат из капусты с кукур. | D28: 100 | E28: 2.2 | F28: 6.3 | G28: 8 | H28: 102 | I28: 47.25 | J28: 16.42 | K28: 1.07 | L28: 0.03 | M28: 0.04 | N28: 19.55
B29: 140 | C29: Суфле из курицы | D29: 110 | E29: 32.3 | F29: 38.3 | G29: 3 | H29: 486 | I29: 51.71 | J29: 26.75 | K29: 2.58 | L29: 0.07 | M29: 0.23 | N29: 0.45
B30: 227 | C30: рожки отварные | D30: 185 | E30: 6.5 | F30: 4.4 | G30: 40 | H30: 233 | I30: 11.06 | J30: 8.77 | K30: 0.88 | L30: 0.08 | M30: 0.02 | N30: 0
B31: 300 | C31: чай с сах. | D31: 200 | E31: 0.2 | F31: 0 | G31: 9.1 | H31: 36 | I31: 0.26 | J31: 0 | K31: 0.03 | L31: 0 | M31: 0 | N31: 0
B32: 1.5 | C32: хлеб пшеничный | D32: 70 | E32: 3.1 | F32: 7 | G32: 33.8 | H32: 172.2 | I32: 16.1 | J32: 23.1 | K32: 1.4 | L32: 0.11 | M32: 0.04 | N32: 0
B33: 1.6 | C33: хлеб ржаной | D33: 40 | E33: 2.6 | F33: 0.48 | G33: 13.3 | H33: 77.2 | I33: 14 | J33: 18.8 | K33: 1.56 | L33: 0.07 | M33: 0.02 | N33: 0
C34: итого | D34: =SUM(D28:D33) -> 705 | E34: =SUM(E28:E33) -> 46.9 | F34: 56.48 | G34: 107.2 | H34: 1106.4 | I34: 140.38 | J34: 93.84 | K34: 7.52 | L34: 0.36 | M34: 0.35 | N34: 20
B35: 298 | C35: Кисломолочный продукт | D35: 200 | E35: 5.7 | F35: 6.3 | G35: 17.6 | H35: 151 | I35: 235.2 | J35: 27.44 | K35: 0.23 | L35: 0.06 | M35: 0.33 | N35: 1.37
C36: итого за день | D36: =SUM(D8+D12+D21+D26+D34+D35) -> 3110 | E36: =SUM(E8+E12+E21+E26+E34+E35) -> 113.3 | F36: 138.46 | G36: 416.9 | H36: 3358.2 | I36: 1200 | J36: 418.36 | K36: 19.13 | L36: 1.34 | M36: 1.89 | N36: 60.14

Sheet 10 день
A1: 10 день
B2: № по сборн. Рецеп. | C2: наименование | D2: выход, гр. | E2: белки,г. | F2: жиры,г. | G2: углеводы,г. | H2: Энерг.цен.,ккал | I2: Минеральные элементы | L2: Витамины
I3: Са | J3: Mg | K3: Fe | L3: В1, мг. | M3: В2, мг. | N3: С, мг.
C4: завтрак
B5: 1.3 | C5: Бутерброд с маслом | D5: 115 | E5: 2.4 | F5: 12.7 | G5: 14.6 | H5: 186 | I5: 8.7 | J5: 9.9 | K5: 0.63 | L5: 0.05 | M5: 0.03 | N5: 0
B6: 188 | C6: каша ячневая молочная | D6: 250 | E6: 5.8 | F6: 4.8 | G6: 36.3 | H6: 224 | I6: 46.14 | J6: 27.88 | K6: 1.03 | L6: 0.13 | M6: 0.05 | N6: 0
B7: 304 | C7: кофейный напиток | D7: 200 | E7: 2.9 | F7: 2.8 | G7: 14.9 | H7: 94 | I7: 105.86 | J7: 12.18 | K7: 0.11 | L7: 0.03 | M7: 0.12 | N7: 0.52
C8: итого | D8: =SUM(D5:D7) -> 565 | E8: 11.1 | F8: 20.3 | G8: 65.8 | H8: 504 | I8: 160.7 | J8: 49.96 | K8: 1.77 | L8: 0.21 | M8: 0.2 | N8: 0.52
C9: завтрак 2
B10: 239 | C10: Запеканка из творога | D10: 170 | E10: 28.9 | F10: 20.3 | G10: 43.2 | H10: 475 | I10: 281 | J10: 42.53 | K10: 1.08 | L10: 0.1 | M10: 0.43 | N10: 0.56
B11: 302 | C11: чай с сахаром | D11: 200 | E11: 0.2 | F11: 0 | G11: 9.3 | H11: 38 | I11: 2.73 | J11: 0.73 | K11: 0.06 | L11: 0 | M11: 0 | N11: 1.12
C12: итого | D12: =SUM(D10:D11) -> 370 | E12: =SUM(E10:E11) -> 29.1 | F12: 20.3 | G12: 52.5 | H12: 513 | I12: 283.73 | J12: 43.26 | K12: 1.14 | L12: 0.1 | M12: 0.43 | N12: 1.68
C13: обед
B14: 18 | C14: салат из моркови с изюмом | D14: 100 | E14: 1.8 | F14: 0.1 | G14: 23.7 | H14: 108 | I14: 37.71 | J14: 39.56 | K14: 0.88 | L14: 0.05 | M14: 0.07 | N14: 4.12
B15: 62 | C15: Суп с лапшой домашней | D15: 300 | E15: 3.4 | F15: 2.8 | G15: 21.4 | H15: 131 | I15: 18.03 | J15: 25.12 | K15: 1.03 | L15: 0.1 | M15: 0.07 | N15: 7.92
B16: 113 | C16: Говядина тушеная с капустой | D16: 250 | E16: 25.3 | F16: 56.8 | G16: 13.4 | H16: 672 | I16: 75.62 | J16: 54.26 | K16: 4.58 | L16: 0.11 | M16: 0.25 | N16: 26.68
B17: 309 | C17: компот из изюма | D17: 200 | E17: 1.2 | F17: 0.1 | G17: 29.5 | H17: 127 | I17: 34.67 | J17: 21.7 | K17: 0.73 | L17: 0.02 | M17: 0.04 | N17: 0.16
B18: 1.5 | C18: хлеб пшеничный | D18: 70 | E18: 3.1 | F18: 7 | G18: 33.8 | H18: 172.2 | I18: 16.1 | J18: 23.1 | K18: 1.4 | L18: 0.11 | M18: 0.04 | N18: 0
B19: 1.6 | C19: хлеб ржаной | D19: 40 | E19: 2.6 | F19: 0.48 | G19: 13.3 | H19: 77.2 | I19: 14 | J19: 18.8 | K19: 1.56 | L19: 0.07 | M19: 0.02 | N19: 0
C20: итого | D20: =SUM(D14:D19) -> 960 | E20: 37.4 | F20: 67.28 | G20: 135.1 | H20: 1287.4 | I20: 196.13 | J20: 182.54 | K20: 10.18 | L20: 0.46 | M20: 0.49 | N20: 38.88
B21: 331 | C21: кисель витам. | D21: 200 | E21: 0 | F21: 0 | G21: 21.7 | H21: 85 | I21: 0 | J21: 0 | K21: 0 | L21: 0.27 | M21: 0.34 | N21: 10
B22: 264 | C22: Пирожок печеный с яблоками | D22: 100 | E22: 6.1 | F22: 5.3 | G22: 44 | H22: 252 | I22: 18.93 | J22: 10.98 | K22: 1.42 | L22: 0.08 | M22: 0.06 | N22: 1.39
C23: Фрукт в ассортименте
C24: итого | D24: =SUM(D21:D22) -> 300 | E24: =SUM(E21:E22) -> 6.1 | F24: 5.3 | G24: 65.7 | H24: 337 | I24: 18.93 | J24: 10.98 | K24: 1.42 | L24: 0.35 | M24: 0.4 | N24: 11.39
C25: ужин
B26: 26 | C26: Салат из свекла с изюмом | D26: 100 | E26: 1.3 | F26: 5.8 | G26: 15.7 | H26: 121 | I26: 24.02 | J26: 14.07 | K26: 0.9 | L26: 0.01 | M26: 0.02 | N26: 0.65
B27: 2.2 | C27: Тефтели | D27: 120 | E27: 18.54 | F27: 12.45 | G27: 7.21 | H27: 216 | I27: 35.58 | J27: 20.75 | K27: 0.92 | L27: 0.04 | M27: 0.09 | N27: 0.35
B28: 183 | C28: каша гречневая рассыпчатая | D28: 185 | E28: 10.6 | F28: 6.8 | G28: 46.3 | H28: 312 | I28: 17.21 | J28: 162.83 | K28: 5.58 | L28: 0.31 | M28: 0.16 | N28: 0
B29: 302 | C29: чай с сахаром,лимоном | D29: 200 | E29: 0.2 | F29: 0 | G29: 9.3 | H29: 38 | I29: 2.73 | J29: 0.73 | K29: 0.06 | L29: 0 | M29: 0 | N29: 1.12
B30: 1.5 | C30: хлеб пшеничный | D30: 70 | E30: 3.1 | F30: 7 | G30: 33.8 | H30: 172.2 | I30: 16.1 | J30: 23.1 | K30: 1.4 | L30: 0.11 | M30: 0.04 | N30: 0
B31: 1.6 | C31: хлеб ржаной | D31: 40 | E31: 2.6 | F31: 0.48 | G31: 13.3 | H31: 77.2 | I31: 14 | J31: 18.8 | K31: 1.56 | L31: 0.07 | M31: 0.02 | N31: 0
C32: итого | D32: =SUM(D26:D31) -> 715 | E32: =SUM(E26:E31) -> 36.34 | F32: 32.53 | G32: 125.61 | H32: 936.4 | I32: 109.64 | J32: 240.28 | K32: 10.42 | L32: 0.54 | M32: 0.33 | N32: 2.12
B33: 298 | C33: кисломол.прод. | D33: 200 | E33: 5.7 | F33: 6.3 | G33: 17.6 | H33: 151 | I33: 235.2 | J33: 27.44 | K33: 0.23 | L33: 0.06 | M33: 0.33 | N33: 1.37
C34: итого за день | D34: =SUM(D8+D12+D20+D24+D32+D33) -> 3110 | E34: =SUM(E8+E12+E20+E24+E32+E33) -> 125.74 | F34: 152.01 | G34: 462.31 | H34: 3728.8 | I34: 1004.33 | J34: 554.46 | K34: 25.16 | L34: 1.72 | M34: 2.18 | N34: 55.96

Sheet 11 день
A1: 11 день
B2: № по сборн. Рецеп. | C2: наименование | D2: выход, гр. | E2: белки,г. | F2: жиры,г. | G2: углеводы,г. | H2: Энерг.цен.,ккал | I2: Минеральные элементы | L2: Витамины
I3: Са | J3: Mg | K3: Fe | L3: В1, мг. | M3: В2, мг. | N3: С, мг.
C4: завтрак
B5: 1.3 | C5: Бутерброд с маслом | D5: 115 | E5: 2.4 | F5: 12.7 | G5: 14.6 | H5: 186 | I5: 8.7 | J5: 9.9 | K5: 0.63 | L5: 0.05 | M5: 0.03 | N5: 0
B6: 192 | C6: каша,,геркулес,, | D6: 250 | E6: 7.2 | F6: 9.1 | G6: 30.8 | H6: 239 | I6: 120.32 | J6: 57.76 | K6: 1.46 | L6: 0.16 | M6: 0.14 | N6: 0.18
B7: 304 | C7: кофейный напиток | D7: 200 | E7: 2.9 | F7: 2.8 | G7: 14.9 | H7: 94 | I7: 105.86 | J7: 12.18 | K7: 0.11 | L7: 0.03 | M7: 0.12 | N7: 0.52
C8: итого | D8: =SUM(D5:D7) -> 565 | E8: 12.5 | F8: 24.6 | G8: 60.3 | H8: 519 | I8: 234.88 | J8: 79.84 | K8: 2.2 | L8: 0.24 | M8: 0.29 | N8: 0.7
C9: завтрак 2
B10: 239 | C10: Запеканка из творога | D10: 170 | E10: 28.9 | F10: 20.3 | G10: 43.2 | H10: 475 | I10: 281 | J10: 42.53 | K10: 1.08 | L10: 0.1 | M10: 0.43 | N10: 0.56
B11: 306 | C11: какао с молоком | D11: 200 | E11: 3.6 | F11: 3.3 | G11: 13.7 | H11: 98 | I11: 110.37 | J11: 26.97 | K11: 0.88 | L11: 0.03 | M11: 0.13 | N11: 0.52
C12: итого | D12: =SUM(D10:D11) -> 370 | E12: =SUM(E10:E11) -> 32.5 | F12: 23.6 | G12: 56.9 | H12: 573 | I12: 391.37 | J12: 69.5 | K12: 1.96 | L12: 0.13 | M12: 0.56 | N12: 1.08
C13: обед
B14: 34 | C14: Салат "Здоровье" | D14: 100 | E14: 1.7 | F14: 4.5 | G14: 8.6 | H14: 87 | I14: 31.77 | J14: 28.94 | K14: 1.02 | L14: 0.05 | M14: 0.05 | N14: 8.04
B15: 67 | C15: суп Крестьянский | D15: 300 | E15: 2.8 | F15: 6.6 | G15: 15.3 | H15: 138 | I15: 38.36 | J15: 21.53 | K15: 0.8 | L15: 0.06 | M15: 0.05 | N15: 9.61
B16: 123 | C16: Рулет с луком и яйцом | D16: 120 | E16: 15.7 | F16: 11 | G16: 10.4 | H16: 208 | I16: 54.88 | J16: 33.3 | K16: 2.2 | L16: 0.1 | M16: 0.22 | N16: 0.88
B17: 227 | C17: рожки отварные | D17: 185 | E17: 6.5 | F17: 4.4 | G17: 40 | H17: 233 | I17: 11.06 | J17: 8.77 | K17: 0.88 | L17: 0.08 | M17: 0.02 | N17: 0
B18: 309 | C18: компот из чернослива | D18: 200 | E18: 1.2 | F18: 0.1 | G18: 29.5 | H18: 127 | I18: 34.67 | J18: 21.7 | K18: 0.73 | L18: 0.02 | M18: 0.04 | N18: 0.16
B19: 227 | C19: рожки отварные | D19: 185 | E19: 6.5 | F19: 4.4 | G19: 40 | H19: 233 | I19: 11.06 | J19: 8.77 | K19: 0.88 | L19: 0.08 | M19: 0.02 | N19: 0
B20: 1.5 | C20: хлеб пшеничный | D20: 70 | E20: 3.1 | F20: 7 | G20: 33.8 | H20: 172.2 | I20: 16.1 | J20: 23.1 | K20: 1.4 | L20: 0.11 | M20: 0.04 | N20: 0
B21: 1.6 | C21: хлеб ржаной | D21: 40 | E21: 2.6 | F21: 0.48 | G21: 13.3 | H21: 77.2 | I21: 14 | J21: 18.8 | K21: 1.56 | L21: 0.07 | M21: 0.02 | N21: 0
C22: Фрукт в ассортименте
C23: итого | D23: =SUM(D14:D21) -> 1200 | E23: =SUM(E14:E21) -> 40.1 | F23: 38.48 | G23: 190.9 | H23: 1275.4 | I23: 211.9 | J23: 164.91 | K23: 9.47 | L23: 0.57 | M23: 0.46 | N23: 18.69
C24: полдник
C25: сок фруктовый | D25: 200 | E25: 0.5 | F25: 0 | G25: 10.6 | H25: 44 | I25: 7.85 | J25: 2.09 | K25: 0.79 | L25: 0.004 | M25: 0.005 | N25: 0.48
C26: печенье | D26: 50 | E26: 1.5 | F26: 2 | G26: 14.9 | H26: 83.4 | I26: 0 | J26: 4 | K26: 0.4 | L26: 0 | M26: 0 | N26: 0
C27: итого | D27: =SUM(D25:D26) -> 250 | E27: =SUM(E25:E26) -> 2 | F27: 2 | G27: 25.5 | H27: 127.4 | I27: 7.85 | J27: 6.09 | K27: 1.19 | L27: 0.004 | M27: 0.005 | N27: 0.48
C28: ужин
B29: 39 | C29: салат карт.с огурц.солен. | D29: 100 | E29: 1.5 | F29: 5.2 | G29: 10 | H29: 95 | I29: 23.26 | J29: 21.11 | K29: 0.75 | L29: 0.06 | M29: 0.05 | N29: 6.41
B30: 133 | C30: курица отварная | D30: 100 | E30: 26.1 | F30: 24.6 | G30: 0.3 | H30: 327 | I30: 22.58 | J30: 24.33 | K30: 2.14 | L30: 0.08 | M30: 0.18 | N30: 1.27
B31: 8.1 | C31: рис отварной | D31: 180 | E31: 4.5 | F31: 7 | G31: 45.3 | H31: 271 | I31: 21.17 | J31: 18.15 | K31: 0.5 | L31: 0.02 | M31: 0.02 | N31: 0
B32: 300 | C32: чай с сах. | D32: 200 | E32: 0.2 | F32: 0 | G32: 9.1 | H32: 36 | I32: 0.26 | J32: 0 | K32: 0.03 | L32: 0 | M32: 0 | N32: 0
B33: 1.5 | C33: хлеб пшеничный | D33: 70 | E33: 3.1 | F33: 7 | G33: 33.8 | H33: 172.2 | I33: 16.1 | J33: 23.1 | K33: 1.4 | L33: 0.11 | M33: 0.04 | N33: 0
B34: 1.6 | C34: хлеб ржаной | D34: 40 | E34: 2.6 | F34: 0.48 | G34: 13.3 | H34: 77.2 | I34: 14 | J34: 18.8 | K34: 1.56 | L34: 0.07 | M34: 0.02 | N34: 0
C35: итого | D35: =SUM(D29:D34) -> 690 | E35: =SUM(E29:E34) -> 38 | F35: 44.28 | G35: 111.8 | H35: 978.4 | I35: 97.37 | J35: 105.49 | K35: 6.38 | L35: 0.34 | M35: 0.31 | N35: 7.68
B36: 298 | C36: Кисломолочный продукт | D36: 200 | E36: 5.7 | F36: 6.3 | G36: 17.6 | H36: 151 | I36: 235.2 | J36: 27.44 | K36: 0.23 | L36: 0.06 | M36: 0.33 | N36: 1.37
C37: итого за день | D37: =D8+D12+D23+D27+D35+D36 -> 3275 | E37: =E8+E12+E23+E27+E35+E36 -> 130.8 | F37: 139.26 | G37: 463 | H37: 3624.2 | I37: 1178.57 | J37: 453.27 | K37: 21.43 | L37: 1.344 | M37: 1.955 | N37: 30

Sheet 12 день
A1: 12 день
B2: № по сборн. Рецеп. | C2: наименование | D2: выход, гр. | E2: белки,г. | F2: жиры,г. | G2: углеводы,г. | H2: Энерг.цен.,ккал | I2: Минеральные элементы | L2: Витамины
I3: Са | J3: Mg | K3: Fe | L3: В1, мг. | M3: В2, мг. | N3: С, мг.
C4: завтрак
B5: 1.3 | C5: Бутерброд с маслом | D5: 115 | E5: 2.4 | F5: 12.7 | G5: 14.6 | H5: 186 | I5: 8.7 | J5: 9.9 | K5: 0.63 | L5: 0.05 | M5: 0.03 | N5: 0
B6: 186 | C6: каша гречневая с молоком | D6: 250 | E6: 8.5 | F6: 4.6 | G6: 33.1 | H6: 218 | I6: 30.12 | J6: 98.41 | K6: 3.09 | L6: 0.18 | M6: 0.21 | N6: 0.52
B7: 1.4 | C7: сыр голланд. | D7: 30 | E7: 7.9 | F7: 8 | G7: 0 | H7: 105 | I7: 300 | J7: 16.5 | K7: 0.21 | L7: 0.01 | M7: 0.11 | N7: 0.21
B8: 306 | C8: какао с молоком | D8: 200 | E8: 3.6 | F8: 3.3 | G8: 13.7 | H8: 98 | I8: 110.37 | J8: 26.97 | K8: 0.88 | L8: 0.03 | M8: 0.13 | N8: 0.52
C9: итого | D9: =SUM(D5:D8) -> 595 | E9: 22.4 | F9: 28.6 | G9: 61.4 | H9: 607 | I9: 449.19 | J9: 151.78 | K9: 4.81 | L9: 0.27 | M9: 0.48 | N9: 1.25
C10: завтрак 2
B11: 234 | C11: омлет натуральный | D11: 155 | E11: 14.6 | F11: 25.6 | G11: 2.6 | H11: 299 | I11: 100.46 | J11: 16.81 | K11: 2.5 | L11: 0.07 | M11: 0.46 | N11: 0.22
B12: 302 | C12: чай с сахаром | D12: 200 | E12: 0.2 | F12: 0 | G12: 9.3 | H12: 38 | I12: 2.73 | J12: 0.73 | K12: 0.06 | L12: 0 | M12: 0 | N12: 1.12
C13: итого | D13: =SUM(D11:D12) -> 355 | E13: =SUM(E11:E12) -> 14.8 | F13: 25.6 | G13: 11.9 | H13: 337 | I13: 103.19 | J13: 17.54 | K13: 2.56 | L13: 0.07 | M13: 0.46 | N13: 1.34
C14: обед
B15: 9 | C15: салат из капусты с зел.гор. | D15: 100 | E15: 3.8 | F15: 9.1 | G15: 5.2 | H15: 123 | I15: 43.46 | J15: 16 | K15: 0.92 | L15: 0.04 | M15: 0.09 | N15: 13.21
B16: 70 | C16: свекольник | D16: 300 | E16: 3 | F16: 5.4 | G16: 17 | H16: 138 | I16: 40 | J16: 33.15 | K16: 1.67 | L16: 0.07 | M16: 0.07 | N16: 5.96
B17: 139 | C17: плов из курицы | D17: 250 | E17: 39.7 | F17: 48.8 | G17: 39.4 | H17: 764 | I17: 40.45 | J17: 64.12 | K17: 3.62 | L17: 0.11 | M17: 0.24 | N17: 0.95
B18: 319 | C18: напиток из шиповника | D18: 200 | E18: 0.7 | F18: 0.3 | G18: 29 | H18: 127 | I18: 12.22 | J18: 3.23 | K18: 0.64 | L18: 0.01 | M18: 0.05 | N18: 80
B19: 1.5 | C19: хлеб пшеничный | D19: 70 | E19: 3.1 | F19: 7 | G19: 33.8 | H19: 172.2 | I19: 16.1 | J19: 23.1 | K19: 1.4 | L19: 0.11 | M19: 0.04 | N19: 0
B20: 1.6 | C20: хлеб ржаной | D20: 40 | E20: 2.6 | F20: 0.48 | G20: 13.3 | H20: 77.2 | I20: 14 | J20: 18.8 | K20: 1.56 | L20: 0.07 | M20: 0.02 | N20: 0
C21: итого | D21: =SUM(D15:D20) -> 960 | E21: 52.9 | F21: 71.08 | G21: 137.7 | H21: 1401.4 | I21: 166.23 | J21: 158.4 | K21: 9.81 | L21: 0.41 | M21: 0.51 | N21: 100.12
C22: полдник
B23: 302 | C23: чай с сахаром | D23: 200 | E23: 0.2 | F23: 0 | G23: 9.3 | H23: 38 | I23: 2.73 | J23: 0.73 | K23: 0.06 | L23: 0 | M23: 0 | N23: 1.12
C24: вафли | D24: 50 | E24: 1.5 | F24: 2 | G24: 14.9 | H24: 83.4 | I24: 0 | J24: 4 | K24: 0.4 | L24: 0 | M24: 0 | N24: 0
C25: Фрукт в ассортименте
C26: итого | D26: =SUM(D23:D24) -> 250 | E26: =SUM(E23:E24) -> 1.7 | F26: 2 | G26: 24.2 | H26: 121.4 | I26: 2.73 | J26: 4.73 | K26: 0.46 | L26: 0 | M26: 0 | N26: 1.12
C27: ужин
B28: 40 | C28: салат,,степной,, | D28: 100 | E28: 1.6 | F28: 3.4 | G28: 8.2 | H28: 74 | I28: 18.46 | J28: 19.53 | K28: 0.61 | L28: 0.06 | M28: 0.05 | N28: 2.98
B29: 2.25 | C29: Котлеты мясные паровые | D29: 100 | E29: 16.82 | F29: 11.42 | G29: 7.28 | H29: 200 | I29: 12.6 | J29: 8.1 | K29: 5.6 | L29: 11.5 | M29: 10 | N29: 1.8
B30: 158 | C30: Рагу из овощей | D30: 230 | E30: 4.2 | F30: 17.8 | G30: 22.6 | H30: 276 | I30: 40.4 | J30: 31.07 | K30: 1.28 | L30: 0.08 | M30: 0.08 | N30: 5.1
B31: 302 | C31: чай с сах.лим. | D31: 200 | E31: 0.2 | F31: 0 | G31: 9.3 | H31: 38 | I31: 2.73 | J31: 0.73 | K31: 0.06 | L31: 0 | M31: 0 | N31: 1.12
B32: 1.5 | C32: хлеб пшеничный | D32: 70 | E32: 3.1 | F32: 7 | G32: 33.8 | H32: 172.2 | I32: 16.1 | J32: 23.1 | K32: 1.4 | L32: 0.11 | M32: 0.04 | N32: 0
B33: 1.6 | C33: хлеб ржаной | D33: 40 | E33: 2.6 | F33: 0.48 | G33: 13.3 | H33: 77.2 | I33: 14 | J33: 18.8 | K33: 1.56 | L33: 0.07 | M33: 0.02 | N33: 0
C34: итого | D34: =SUM(D28:D33) -> 740 | E34: =SUM(E28:E33) -> 28.52 | F34: 40.1 | G34: 94.48 | H34: 837.4 | I34: 104.29 | J34: 101.33 | K34: 10.51 | L34: 11.82 | M34: 10.19 | N34: 11
B35: 298 | C35: Кисломолочный продукт | D35: 200 | E35: 5.7 | F35: 6.3 | G35: 17.6 | H35: 151 | I35: 235.2 | J35: 27.44 | K35: 0.23 | L35: 0.06 | M35: 0.33 | N35: 1.37
C36: Итого за день | D36: =D9+D13+D21+D26+D34+D35 -> 3100 | E36: 126.02 | F36: 173.68 | G36: 347.28 | H36: 3455.2 | I36: 1060.83 | J36: 461.22 | K36: 28.38 | L36: 12.63 | M36: 11.97 | N36: 116.2

Sheet 13 день
A1: 13 день
B2: № по сборн. Рецеп. | C2: наименование | D2: выход, гр. | E2: белки,г. | F2: жиры,г. | G2: углеводы,г. | H2: Энерг.цен.,ккал | I2: Минеральные элементы | L2: Витамины
I3: Са | J3: Mg | K3: Fe | L3: В1, мг. | M3: В2, мг. | N3: С, мг.
C4: завтрак
B5: 1.3 | C5: Бутерброд с маслом | D5: 115 | E5: 2.4 | F5: 12.7 | G5: 14.6 | H5: 186 | I5: 8.7 | J5: 9.9 | K5: 0.63 | L5: 0.05 | M5: 0.03 | N5: 0
B6: 192 | C6: каша,,геркулес,, | D6: 250 | E6: 7.2 | F6: 9.1 | G6: 30.8 | H6: 239 | I6: 120.32 | J6: 57.76 | K6: 1.46 | L6: 0.16 | M6: 0.14 | N6: 0.18
B7: 1.4 | C7: сыр голланд. | D7: 30 | E7: 7.9 | F7: 8 | G7: 0 | H7: 105 | I7: 300 | J7: 16.5 | K7: 0.21 | L7: 0.01 | M7: 0.11 | N7: 0.21
C8: кофейный напиток | D8: 200 | E8: 2.9 | F8: 2.8 | G8: 14.9 | H8: 94 | I8: 105.86 | J8: 12.18 | K8: 0.11 | L8: 0.03 | M8: 0.12 | N8: 0.52
C9: итого | D9: =SUM(D5:D8) -> 595 | E9: 20.4 | F9: 32.6 | G9: 60.3 | H9: 624 | I9: 534.88 | J9: 96.34 | K9: 2.41 | L9: 0.25 | M9: 0.4 | N9: 0.91
C10: завтрак 2
B11: 239 | C11: Запеканка из творога | D11: 170 | E11: 28.9 | F11: 20.3 | G11: 43.2 | H11: 475 | I11: 281 | J11: 42.53 | K11: 1.08 | L11: 0.1 | M11: 0.43 | N11: 0.56
B12: 306 | C12: какао с молоком | D12: 200 | E12: 3.6 | F12: 3.3 | G12: 13.7 | H12: 98 | I12: 110.37 | J12: 26.97 | K12: 0.88 | L12: 0.03 | M12: 0.13 | N12: 0.52
C13: итого | D13: =SUM(D11:D12) -> 370 | E13: =SUM(E11:E12) -> 32.5 | F13: 23.6 | G13: 56.9 | H13: 573 | I13: 391.37 | J13: 69.5 | K13: 1.96 | L13: 0.13 | M13: 0.56 | N13: 1.08
C14: обед
B15: 18 | C15: салат из моркови с курагой | D15: 100 | E15: 1.7 | F15: 4.5 | G15: 8.6 | H15: 87 | I15: 31.77 | J15: 28.94 | K15: 1.02 | L15: 0.05 | M15: 0.05 | N15: 8.04
B16: 55 | C16: щи из свеж.капусты | D16: 300 | E16: 2 | F16: 5.4 | G16: 8.8 | H16: 96 | I16: 40.62 | J16: 19.86 | K16: 0.73 | L16: 0.06 | M16: 0.06 | N16: 12.01
B17: 80 | C17: Рыба тушеная с овощами | D17: 120 | E17: 10.7 | F17: 5.2 | G17: 5.6 | H17: 113 | I17: 9.71 | J17: 11.61 | K17: 0.34 | L17: 0.02 | M17: 0.02 | N17: 1.55
B18: 146 | C18: картофельное пюре | D18: 200 | E18: 4.1 | F18: 6.3 | G18: 26.7 | H18: 187 | I18: 47.47 | J18: 37.87 | K18: 1.38 | L18: 0.16 | M18: 0.14 | N18: 13.84
B19: 309 | C19: компот из изюма | D19: 200 | E19: 1.2 | F19: 0.1 | G19: 29.5 | H19: 127 | I19: 34.67 | J19: 21.7 | K19: 0.73 | L19: 0.02 | M19: 0.04 | N19: 0.16
B20: 1.5 | C20: хлеб пшеничный | D20: 70 | E20: 3.1 | F20: 7 | G20: 33.8 | H20: 172.2 | I20: 16.1 | J20: 23.1 | K20: 1.4 | L20: 0.11 | M20: 0.04 | N20: 0
B21: 1.6 | C21: хлеб ржаной | D21: 40 | E21: 2.6 | F21: 0.48 | G21: 13.3 | H21: 77.2 | I21: 14 | J21: 18.8 | K21: 1.56 | L21: 0.07 | M21: 0.02 | N21: 0
C22: итого | D22: =SUM(D15:D21) -> 1030 | E22: 25.4 | F22: 28.98 | G22: 126.3 | H22: 859.4 | I22: 194.34 | J22: 161.88 | K22: 7.16 | L22: 0.49 | M22: 0.37 | N22: 35.6
C23: полдник
C24: сок фруктовый | D24: 200 | E24: 0.5 | F24: 0 | G24: 10.6 | H24: 44 | I24: 7.85 | J24: 2.09 | K24: 0.79 | L24: 0.004 | M24: 0.005 | N24: 0.48
C25: вафли | D25: 50 | E25: 1.5 | F25: 2 | G25: 14.9 | H25: 83.4 | I25: 0 | J25: 4 | K25: 0.4 | L25: 0 | M25: 0 | N25: 0
C26: Фрукт в ассортименте
C27: итого | D27: =SUM(D24:D25) -> 250 | E27: =SUM(E24:E25) -> 2 | F27: 2 | G27: 25.5 | H27: 127.4 | I27: 7.85 | J27: 6.09 | K27: 1.19 | L27: 0.004 | M27: 0.005 | N27: 0.48
C28: ужин
B29: 40 | C29: салат,,степной,, | D29: 100 | E29: 1.6 | F29: 3.4 | G29: 8.2 | H29: 74 | I29: 18.46 | J29: 19.53 | K29: 0.61 | L29: 0.06 | M29: 0.05 | N29: 2.98
B30: 133 | C30: курица отварная | D30: 100 | E30: 26.1 | F30: 24.6 | G30: 0.3 | H30: 327 | I30: 22.58 | J30: 24.33 | K30: 2.14 | L30: 0.08 | M30: 0.18 | N30: 1.27
B31: 8.1 | C31: рис отварной | D31: 180 | E31: 4.5 | F31: 7 | G31: 45.3 | H31: 271 | I31: 21.17 | J31: 18.15 | K31: 0.5 | L31: 0.02 | M31: 0.02 | N31: 0
B32: 302 | C32: чай с сах.лим. | D32: 200 | E32: 0.2 | F32: 0 | G32: 9.3 | H32: 38 | I32: 2.73 | J32: 0.73 | K32: 0.06 | L32: 0 | M32: 0 | N32: 1.12
B33: 1.5 | C33: хлеб пшеничный | D33: 70 | E33: 3.1 | F33: 7 | G33: 33.8 | H33: 172.2 | I33: 16.1 | J33: 23.1 | K33: 1.4 | L33: 0.11 | M33: 0.04 | N33: 0
B34: 1.6 | C34: хлеб ржаной | D34: 40 | E34: 2.6 | F34: 0.48 | G34: 13.3 | H34: 77.2 | I34: 14 | J34: 18.8 | K34: 1.56 | L34: 0.07 | M34: 0.02 | N34: 0
C35: итого | D35: =SUM(D29:D34) -> 690 | E35: =SUM(E29:E34) -> 38.1 | F35: 42.48 | G35: 110.2 | H35: 959.4 | I35: 95.04 | J35: 104.64 | K35: 6.27 | L35: 0.34 | M35: 0.31 | N35: 5.37
B36: 298 | C36: Кисломолочный продукт | D36: 200 | E36: 5.7 | F36: 6.3 | G36: 17.6 | H36: 151 | I36: 235.2 | J36: 27.44 | K36: 0.23 | L36: 0.06 | M36: 0.33 | N36: 1.37
C37: Итого за день | D37: =D9+D13+D22+D27+D35+D36 -> 3135 | E37: 124.1 | F37: 135.96 | G37: 396.8 | H37: 3294.2 | I37: 1458.68 | J37: 465.89 | K37: 19.22 | L37: 1.274 | M37: 1.975 | N37: 44.81

Sheet 14 день
A1: 14 день
B2: № по сборн. Рецеп. | C2: наименование | D2: выход, гр. | E2: белки,г. | F2: жиры,г. | G2: углеводы,г. | H2: Энерг.цен.,ккал | I2: Минеральные элементы | L2: Витамины
I3: Са | J3: Mg | K3: Fe | L3: В1, мг. | M3: В2, мг. | N3: С, мг.
C4: завтрак
B5: 1.3 | C5: Бутерброд с маслом | D5: 115 | E5: 2.4 | F5: 12.7 | G5: 14.6 | H5: 186 | I5: 8.7 | J5: 9.9 | K5: 0.63 | L5: 0.05 | M5: 0.03 | N5: 0
B6: 208 | C6: каша пшенная молочная | D6: 250 | E6: 6.7 | F6: 7.6 | G6: 32.6 | H6: 222 | I6: 120.25 | J6: 32.58 | K6: 1.65 | L6: 0.12 | M6: 0.16 | N6: 0.47
B7: 1.4 | C7: сыр голланд. | D7: 30 | E7: 7.9 | F7: 8 | G7: 0 | H7: 105 | I7: 300 | J7: 16.5 | K7: 0.21 | L7: 0.01 | M7: 0.11 | N7: 0.21
B8: 306 | C8: какао с молоком | D8: 200 | E8: 3.6 | F8: 3.3 | G8: 13.7 | H8: 98 | I8: 110.37 | J8: 26.97 | K8: 0.88 | L8: 0.03 | M8: 0.13 | N8: 0.52
C9: итого | D9: =SUM(D5:D8) -> 595 | E9: 20.6 | F9: 31.6 | G9: 60.9 | H9: 611 | I9: 539.32 | J9: 85.95 | K9: 3.37 | L9: 0.21 | M9: 0.43 | N9: 1.2
C10: завтрак 2
B11: 234 | C11: омлет натуральный | D11: 155 | E11: 14.6 | F11: 25.6 | G11: 2.6 | H11: 299 | I11: 100.46 | J11: 16.81 | K11: 2.5 | L11: 0.07 | M11: 0.46 | N11: 0.22
B12: 302 | C12: чай с сахаром | D12: 200 | E12: 0.2 | F12: 0 | G12: 9.3 | H12: 38 | I12: 2.73 | J12: 0.73 | K12: 0.06 | L12: 0 | M12: 0 | N12: 1.12
C13: итого | D13: =SUM(D11:D12) -> 355 | E13: =SUM(E11:E12) -> 14.8 | F13: 25.6 | G13: 11.9 | H13: 337 | I13: 103.19 | J13: 17.54 | K13: 2.56 | L13: 0.07 | M13: 0.46 | N13: 1.34
C14: обед
B15: 34 | C15: Салат "Здоровье" | D15: 100 | E15: 1.7 | F15: 4.5 | G15: 8.6 | H15: 87 | I15: 31.77 | J15: 28.94 | K15: 1.02 | L15: 0.05 | M15: 0.05 | N15: 8.04
B16: 63 | C16: суп карт.с крупой | D16: 300 | E16: 2.6 | F16: 2.1 | G16: 19.3 | H16: 113 | I16: 15.74 | J16: 24.01 | K16: 0.92 | L16: 0.08 | M16: 0.06 | N16: 7
B17: 113 | C17: Говядина тушеная с капустой | D17: 250 | E17: 25.3 | F17: 56.8 | G17: 13.4 | H17: 672 | I17: 75.62 | J17: 54.26 | K17: 4.58 | L17: 0.11 | M17: 0.25 | N17: 26.68
B18: 309 | C18: компот из кураги | D18: 200 | E18: 1.2 | F18: 0.1 | G18: 29.5 | H18: 127 | I18: 34.67 | J18: 21.7 | K18: 0.73 | L18: 0.02 | M18: 0.04 | N18: 0.16
B19: 1.5 | C19: хлеб пшеничный | D19: 70 | E19: 3.1 | F19: 7 | G19: 33.8 | H19: 172.2 | I19: 16.1 | J19: 23.1 | K19: 1.4 | L19: 0.11 | M19: 0.04 | N19: 0
B20: 1.6 | C20: хлеб ржаной | D20: 40 | E20: 2.6 | F20: 0.48 | G20: 13.3 | H20: 77.2 | I20: 14 | J20: 18.8 | K20: 1.56 | L20: 0.07 | M20: 0.02 | N20: 0
C21: итого | D21: =SUM(D15:D20) -> 960 | E21: 36.5 | F21: 70.98 | G21: 117.9 | H21: 1248.4 | I21: 187.9 | J21: 170.81 | K21: 10.21 | L21: 0.44 | M21: 0.46 | N21: 41.88
C22: полдник
C23: сок фруктовый | D23: 200 | E23: 0.5 | F23: 0 | G23: 10.6 | H23: 44 | I23: 7.85 | J23: 2.09 | K23: 0.79 | L23: 0.004 | M23: 0.005 | N23: 0.48
C24: печенье | D24: 50 | E24: 1.5 | F24: 2 | G24: 14.9 | H24: 83.4 | I24: 0 | J24: 4 | K24: 0.4 | L24: 0 | M24: 0 | N24: 0
C25: Фрукт в ассортименте
C26: итого | D26: =SUM(D23:D24) -> 250 | E26: =SUM(E23:E24) -> 2 | F26: 2 | G26: 25.5 | H26: 127.4 | I26: 7.85 | J26: 6.09 | K26: 1.19 | L26: 0.004 | M26: 0.005 | N26: 0.48
C27: ужин
B28: 26 | C28: салат из свеклы с изюмом | D28: 100 | E28: 1.3 | F28: 5.8 | G28: 15.7 | H28: 121 | I28: 24.02 | J28: 14.07 | K28: 0.9 | L28: 0.01 | M28: 0.02 | N28: 0.65
B29: 142 | C29: кнели курин.с рисом | D29: 100 | E29: 17.1 | F29: 23.6 | G29: 6.1 | H29: 306 | I29: 25.66 | J29: 19.74 | K29: 1.42 | L29: 0.06 | M29: 0.14 | N29: 0.74
B30: 227 | C30: рожки отварные | D30: 185 | E30: 6.5 | F30: 4.4 | G30: 40 | H30: 233 | I30: 11.06 | J30: 8.77 | K30: 0.88 | L30: 0.08 | M30: 0.02 | N30: 0
B31: 302 | C31: чай с сах.лим. | D31: 200 | E31: 0.2 | F31: 0 | G31: 9.3 | H31: 38 | I31: 2.73 | J31: 0.73 | K31: 0.06 | L31: 0 | M31: 0 | N31: 1.12
B32: 1.5 | C32: хлеб пшеничный | D32: 70 | E32: 3.1 | F32: 7 | G32: 33.8 | H32: 172.2 | I32: 16.1 | J32: 23.1 | K32: 1.4 | L32: 0.11 | M32: 0.04 | N32: 0
B33: 1.6 | C33: хлеб ржаной | D33: 40 | E33: 2.6 | F33: 0.48 | G33: 13.3 | H33: 77.2 | I33: 14 | J33: 18.8 | K33: 1.56 | L33: 0.07 | M33: 0.02 | N33: 0
C34: итого | D34: =SUM(D28:D33) -> 695 | E34: =SUM(E28:E33) -> 30.8 | F34: 41.28 | G34: 118.2 | H34: 947.4 | I34: 93.57 | J34: 85.21 | K34: 6.22 | L34: 0.33 | M34: 0.24 | N34: 2.51
B35: 298 | C35: Кисломолочный продукт | D35: 200 | E35: 5.7 | F35: 6.3 | G35: 17.6 | H35: 151 | I35: 235.2 | J35: 27.44 | K35: 0.23 | L35: 0.06 | M35: 0.33 | N35: 1.37
C36: Итого за день | D36: =D9+D13+D21+D26+D34+D35 -> 3055 | E36: =E9+E13+E21+E26+E34+E35 -> 110.4 | F36: 177.76 | G36: 352 | H36: 3422.2 | I36: 1167.03 | J36: 393.04 | K36: 23.78 | L36: 1.114 | M36: 1.925 | N36: 48.78

Sheet Итого
D4: белки,г. | E4: жиры,г. | F4: углеводы,г. | G4: Энер,цен. | H4: Са | I4: Mg | J4: Fe | K4: В1, мг. | L4: В2, мг. | M4: С, мг.
C5: 1 день | D5: ='1 день'!E37 -> 101.5 | E5: ='1 день'!F37 -> 130.66 | F5: ='1 день'!G37 -> 415.8 | G5: ='1 день'!H37 -> 3222.2 | H5: ='1 день'!I37 -> 1103.14 | I5: ='1 день'!J37 -> 384.97 | J5: ='1 день'!K37 -> 18.22 | K5: ='1 день'!L37 -> 1.074 | L5: ='1 день'!M37 -> 1.535 | M5: ='1 день'!N37 -> 122.44
C6: 2 день | D6: 136.22 | E6: 158.28 | F6: 394.88 | G6: 3527.8 | H6: 1019.11 | I6: 409.9 | J6: 27.91 | K6: 12.824 | L6: 12.133 | M6: 43.4
C7: 3 день | D7: 120.44 | E7: 113.01 | F7: 420.51 | G7: 3187.8 | H7: 1061.4 | I7: 594.82 | J7: 23.75 | K7: 1.97 | L7: 2.22 | M7: 36.37
C8: 4 день | D8: 89.6 | E8: 93.78 | F8: 313.4 | G8: 2467.8 | H8: 1251.54 | I8: 347.42 | J8: 12.03 | K8: 1.08 | L8: 1.94 | M8: 48.08
C9: 5 день | D9: 97.7 | E9: 103.96 | F9: 357.4 | G9: 2734.2 | H9: 1039.92 | I9: 354.46 | J9: 18.15 | K9: 0.95 | L9: 1.73 | M9: 133.38
C10: 6 день | D10: 100.8 | E10: 128.16 | F10: 417.7 | G10: 3207.2 | H10: 1183.12 | I10: 393.2 | J10: 19.21 | K10: 1.164 | L10: 1.605 | M10: 19.93
C11: 7 день | D11: 106 | E11: 126.76 | F11: 422.5 | G11: 3241.2 | H11: 1100.23 | I11: 433.65 | J11: 20 | K11: 1.344 | L11: 1.495 | M11: 49.59
C12: 8 день | D12: 92.5 | E12: 120.06 | F12: 394.1 | G12: 3015.8 | H12: 919.6 | I12: 344.92 | J12: 18.9 | K12: 1.44 | L12: 1.72 | M12: 103.95
C13: 9 день | D13: 111.1 | E13: 135.46 | F13: 405.1 | G13: 3274.2 | H13: 1155.4 | I13: 405.37 | J13: 18.85 | K13: 1.3 | L13: 1.83 | M13: 59.95
C14: 10 день | D14: 125.74 | E14: 152.01 | F14: 462.31 | G14: 3728.8 | H14: 1004.33 | I14: 554.46 | J14: 25.16 | K14: 1.72 | L14: 2.18 | M14: 55.96
C15: 11 день | D15: 130.8 | E15: 139.26 | F15: 463 | G15: 3624.2 | H15: 1178.57 | I15: 453.27 | J15: 21.43 | K15: 1.344 | L15: 1.955 | M15: 30
C16: 12 день | D16: 125.52 | E16: 172.78 | F16: 345.28 | G16: 3432.2 | H16: 1054.16 | I16: 455.7 | J16: 28.1 | K16: 12.62 | L16: 11.96 | M16: 115.21
C17: 13 день | D17: 124.1 | E17: 135.96 | F17: 396.8 | G17: 3294.2 | H17: 1458.68 | I17: 465.89 | J17: 19.22 | K17: 1.274 | L17: 1.975 | M17: 44.81
C18: 14 день | D18: 110.4 | E18: 177.76 | F18: 352 | G18: 3422.2 | H18: 1167.03 | I18: 393.04 | J18: 23.78 | K18: 1.114 | L18: 1.925 | M18: 48.78
C19: ИТОГО | D19: =SUM(D5:D18) -> 1572.42 | E19: =SUM(E5:E18) -> 1887.9 | F19: 5560.78 | G19: 45379.8 | H19: 15696.23 | I19: =SUM(I5:I18) -> 5991.07 | J19: 294.71 | K19: 41.218 | L19: 46.203 | M19: 911.85
